Workbook

Sheet Solicitud ampliada (hidden)

Sheet Datos entrada
N1: PROFESIÓN | P1: MUERTE | Q1: IPA | R1: COMPLEMENTARIOS ACC. | S1: DEPORTE | T1: REGLAS DE SUSCRIPCION PARA TODAS LAS GARANTÍAS
N2: ABOGADO/A | O2: =LOWER(N2) -> abogado/a | P2: - | Q2: - | R2: - | S2: Sin práctica deportiva/ocio de riesgo | T2: Sin recargo
N3: ADMINISTRATIVO/A | O3: =LOWER(N3) -> administrativo/a | P3: - | Q3: - | R3: - | S3: Deporte Profesional | T3: Retenido
N4: AGENTE COMERCIAL | O4: agente comercial | P4: - | Q4: - | R4: - | S4: Aerobic | T4: Sin recargo
N5: AGENTE DE SEGUROS | O5: agente de seguros | P5: - | Q5: - | R5: - | S5: Ala Delta | T5: Retenido
N6: AGENTE DE VIAJES | O6: agente de viajes | P6: - | Q6: - | R6: - | S6: Artes marciales | T6: Sin recargo
N7: AGRICULTOR | O7: agricultor | P7: - | Q7: 1 | R7: 0.5 | S7: Atletismo | T7: Sin recargo
A8: Tarificador Seguro Asisa Vida Tranquilidad | N8: ALBAÑIL | O8: albañil | P8: - | Q8: 1 | R8: 1 | S8: Bádminton | T8: Sin recargo
J9: Anual | N9: AMA/O DE CASA | O9: ama/o de casa | P9: - | Q9: - | R9: - | S9: Baloncesto | T9: Sin recargo
J10: Semestral | N10: ANDAMIAJE (Colocación alturas) | O10: andamiaje (colocación alturas) | P10: Retenido | Q10: Retenido | R10: Retenido | S10: Béisbol | T10: Sin recargo
A11: Datos de entrada del asegurado | B11: 140000 | J11: Trimestral | N11: ARQUITECTO/A | O11: arquitecto/a | P11: - | Q11: - | R11: - | S11: Biatlón/Triatlón/Pentatlón | T11: Retenido
A12: Fecha efecto | B12: 140000 | C12: 2017-01-01 | J12: Mensual | N12: ARQUITECTO/A TECNICO | O12: arquitecto/a tecnico | P12: Retenido | Q12: Retenido | R12: Retenido | S12: Bolos | T12: Sin recargo
A13: (fecha en que tomará efecto la póliza en Asisa Vida) | H13: Si | N13: ASESOR/A FISCAL | O13: asesor/a fiscal | P13: - | Q13: - | R13: - | S13: Bouldering (escalada en roca sin protección) | T13: Retenido
A14: Fecha de nacimiento | B14: 39 | C14: 1977-01-01 | H14: No | I14: Hombre | N14: AUXILIAR ADMINISTRATIVO | O14: auxiliar administrativo | P14: - | Q14: - | R14: - | S14: Boxeo | T14: Retenido
A15: Nombre y apellidos | C15: xxxxx | I15: Mujer | N15: AUXILIAR DE CLÍNICA | O15: auxiliar de clínica | P15: - | Q15: - | R15: - | S15: Buceo deportivo | T15: Retenido
A16: Sexo | C16: Mujer | I16: =YEARFRAC(C12,C14) -> 40 | J16: =INT(I16) -> 40 | K16: =IF((I16-J16)>=0.5,INT(I16)+1,INT(I16)) -> 40 | N16: AUXILIAR DE ENFERMERIA | O16: auxiliar de enfermeria | P16: - | Q16: - | R16: - | S16: Canoa | T16: Sin recargo
A17: NIF | C17: xxxxyyyyyy | N17: BARRENDERO | O17: barrendero | P17: - | Q17: 1 | R17: 1 | S17: Carreras automóviles | T17: Retenido
A18: Edad actuarial | C18: =IF(K16<18,"Edad actuarial inferior al límite legal",IF(K16>64,"Edad de entrada superior al límite",K16)) -> 40 | N18: BIOLOGO/A | O18: biologo/a | P18: - | Q18: - | R18: - | S18: Carreras motocicletas | T18: Retenido
A19: Capital asegurado (mínimo 18.000 €, máximo 300.000 €) | C19: 100000 | N19: BOMBERO | O19: bombero | P19: Retenido | Q19: Retenido | R19: Retenido | S19: Caza | T19: Retenido
A20: Deportes/ocio (*) | C20: Sin práctica deportiva/ocio de riesgo | N20: CAMARERO | O20: camarero | P20: - | Q20: - | R20: - | S20: Ciclismo | T20: Sin recargo
A21: Profesión (*) | C21: traductor/a | N21: CAMIONERO | O21: camionero | P21: - | Q21: 1 | R21: 1 | S21: Críquet | T21: Sin recargo
A22: (*) Otros Deportes/ocio y profesiones consultar | N22: CARNICERO/A | O22: carnicero/a | P22: - | Q22: - | R22: - | S22: Escalada | T22: Retenido
N23: CARTERO/A | O23: cartero/a | P23: - | Q23: - | R23: - | S23: Espelología | T23: Retenido
A24: Garantías | D24: Prima anual por garantía | N24: COCINERO/A | O24: cocinero/a | P24: - | Q24: - | R24: - | S24: Esquí acuático | T24: Sin recargo
D25: (impuestos incluidos) | N25: COMERCIAL | O25: comercial | P25: - | Q25: - | R25: - | S25: Esquí de velocidad | T25: Retenido
A26: Fallecimiento por cualquier causa | C26: Si | D26: =IF(Tarificador!J6="Retenido","-",IF(Tarificador!J5="Retenido","-",IF(Tarificador!E4<50,"-",IF(Tarificador!G7<30,"-",Tarificador!R15)))) -> 99.9785258 | N26: COMERCIANTE | O26: comerciante | P26: - | Q26: - | R26: - | S26: Esquí nieve | T26: Sin recargo
A27: IPA por cualquier causa | C27: Si | D27: =IF(Tarificador!J6="Retenido","-",IF(Tarificador!J5="Retenido","-",IF(Tarificador!E4<50,"-",IF(Tarificador!G7<30,"-",Tarificador!R17)))) -> 35.1091125 | N27: CONDUCTOR VEHÍCULO MATERIAL PELIGROSO | O27: conductor vehículo material peligroso | P27: Retenido | Q27: Retenido | R27: Retenido | S27: Esquí nieve fuera pistas | T27: Retenido
N28: CONDUCTOR VEHÍCULO PESADO | O28: conductor vehículo pesado | P28: - | Q28: 1 | R28: 1 | S28: Exhibición aérea, carreras aéreas | T28: Retenido
N29: CONTABLE | O29: contable | P29: - | Q29: - | R29: - | S29: Fútbol | T29: Sin recargo
N30: DELINEANTE | O30: delineante | P30: - | Q30: - | R30: - | S30: Fútbol Americano amateur | T30: Retenido
N31: DEPENDIENTE/A | O31: dependiente/a | P31: - | Q31: - | R31: - | S31: Gimnasia | T31: Sin recargo
A32: Forma de pago | C32: Anual | N32: DISEÑADOR/A | O32: diseñador/a | P32: - | Q32: - | R32: - | S32: Globo | T32: Sin recargo
N33: DISEÑADOR/A GRAFICO/A | O33: diseñador/a grafico/a | P33: - | Q33: - | R33: - | S33: Golf | T33: Sin recargo
N34: ECONOMISTA | O34: economista | P34: - | Q34: - | R34: - | S34: Halterofilia | T34: Retenido
A35: Total prima anual primera anualidad | C35: =IF(Tarificador!J6="Retenido","Consultar prima por profesión",IF(Tarificador!J5="Retenido","Consultar prima por deporte",IF(Tarificador!E4<50,"Prima inferior al límite mínimo",IF(Tarificador!G7<30,"Recibo inferior al límite mínimo",Tarificador!E4)))) -> 135.0876383 | N35: EDUCADOR/A INFANTIL | O35: educador/a infantil | P35: - | Q35: - | R35: - | S35: Hípica | T35: Sin recargo
N36: ELECTRICISTA ALTA TENSIÓN | O36: electricista alta tensión | P36: Retenido | Q36: Retenido | R36: Retenido | S36: Hockey (hierba, hielo) | T36: Sin recargo
C37: =IF(C19>300000,"Capital por encima del límite. Consultar con la entidad","") ->  | N37: ELECTRICISTA BAJA TENSIÓN | O37: electricista baja tensión | P37: - | Q37: 1 | R37: 0.5 | S37: Karts | T37: Retenido
N38: EMPLEADO/A DE BANCA | O38: empleado/a de banca | P38: - | Q38: - | R38: - | S38: Kayak | T38: Retenido
N39: EMPLEADO/A DE HOGAR | O39: empleado/a de hogar | P39: - | Q39: - | R39: - | S39: Kitesurf (surf con cometa) | T39: Retenido
N40: ENFERMERO/A O D.U.E. | O40: enfermero/a o d.u.e. | P40: - | Q40: - | R40: - | S40: Lanchas motoras | T40: Retenido
N41: ESTETICIEN/ESTETICISTA | O41: esteticien/esteticista | P41: - | Q41: - | R41: - | S41: Levantamiento de pesas | T41: Retenido
N42: ESTIBADOR | O42: estibador | P42: Retenido | Q42: Retenido | R42: Retenido | S42: Lucha extrema | T42: Retenido
N43: ESTUDIANTE, BECARIO | O43: estudiante, becario | P43: - | Q43: - | R43: - | S43: Montañismo/Alpinismo | T43: Retenido
N44: FARMACEUTICO (SIN FABRIC. DE PRODUCTOS) | O44: farmaceutico (sin fabric. de productos) | P44: - | Q44: - | R44: - | S44: Natación | T44: Sin recargo
N45: FARMACEUTICO/A | O45: farmaceutico/a | P45: - | Q45: - | R45: - | S45: Padel | T45: Sin recargo
N46: FISIOTERAPEUTA | O46: fisioterapeuta | P46: - | Q46: - | R46: - | S46: Paracaidismo, caída libre | T46: Retenido
N47: FONTANERO | O47: fontanero | P47: - | Q47: 1 | R47: 0.5 | S47: Parapente | T47: Retenido
N48: FORESTAL | O48: forestal | P48: Retenido | Q48: Retenido | R48: Retenido | S48: Parkour o yamakasi (saltar entre edificios) | T48: Retenido
N49: FUNCIONARIO PRISIONES (ADMINISTRATIVO) | O49: funcionario prisiones (administrativo) | P49: - | Q49: - | R49: - | S49: Planeador | T49: Retenido
N50: FUNCIONARIO PRISIONES (GUARDIA) | O50: funcionario prisiones (guardia) | P50: - | Q50: 0.5 | R50: 0.5 | S50: Polo | T50: Sin recargo
N51: GERENTE | O51: gerente | P51: - | Q51: - | R51: - | S51: Puenting | T51: Retenido
N52: GUARDIA CIVIL | O52: guardia civil | P52: - | Q52: 0.5 | R52: 0.5 | S52: Quad | T52: Retenido
N53: GUARDIA CIVIL (EXPLOSIVOS) | O53: guardia civil (explosivos) | P53: Retenido | Q53: Retenido | R53: Retenido | S53: Raquetas de nieve | T53: Retenido
N54: HIGIENISTA DENTAL | O54: higienista dental | P54: - | Q54: - | R54: - | S54: Remo | T54: Sin recargo
N55: HOSTELERIA | O55: hosteleria | P55: - | Q55: - | R55: - | S55: Rugby | T55: Retenido
N56: INFORMATICO/A | O56: informatico/a | P56: - | Q56: - | R56: - | S56: Salto base (desde sitios fijos con paracaídas) | T56: Retenido
N57: INGENIERO DE CAMINOS CANALES Y PUERTOS | O57: ingeniero de caminos canales y puertos | P57: - | Q57: - | R57: - | S57: Senderismo | T57: Sin recargo
N58: INGENIERO INDUSTRIAL | O58: ingeniero industrial | P58: - | Q58: - | R58: - | S58: Skydiving (paracaidismo con instructor) | T58: Retenido
N59: INGENIERO TECNICO | O59: ingeniero tecnico | P59: - | Q59: - | R59: - | S59: Skysurfing (surfeo aéreo con tabla) | T59: Retenido
N60: INGENIERO/A | O60: ingeniero/a | P60: - | Q60: - | R60: - | S60: Squash | T60: Sin recargo
N61: INGENIERO/A DE TELECOMUNICACIONES | O61: ingeniero/a de telecomunicaciones | P61: - | Q61: - | R61: - | S61: Streetluge (trineo de asfalto) | T61: Retenido
N62: INGENIERO/A INFORMATICO | O62: ingeniero/a informatico | P62: - | Q62: - | R62: - | S62: Surf, surfski | T62: Sin recargo
N63: LIMPIADOR/A | O63: limpiador/a | P63: - | Q63: 1 | R63: 0.5 | S63: Tiro olímpico | T63: Retenido
N64: LIMPIEZA DOMÉSTICA/LOCALES | O64: limpieza doméstica/locales | P64: - | Q64: 1 | R64: 0.5 | S64: Trekking | T64: Retenido
N65: MECÁNICO AERONAVES | O65: mecánico aeronaves | P65: - | Q65: - | R65: - | S65: Ultraligero | T65: Retenido
N66: MECÁNICO COCHES/MOTOS | O66: mecánico coches/motos | P66: - | Q66: 0.5 | R66: 0.5 | S66: Vela (amateur aguas costeras) | T66: Sin recargo
N67: MEDICO | O67: =LOWER(N67) -> medico | P67: - | Q67: - | R67: - | S67: Vela (amateur mar adentro y transoceánico) | T67: Retenido
N68: MILITAR (OFICIAL) | O68: militar (oficial) | P68: - | Q68: - | R68: 0.5 | S68: Waterpolo | T68: Sin recargo
N69: MILITAR (OTROS RANGOS) | O69: militar (otros rangos) | Q69: 0.5 | R69: 1 | S69: Wingsuit (traje aéreo, paracaidismo) | T69: Retenido
N70: MILITAR (RESERVA) | O70: militar (reserva) | P70: - | Q70: - | R70: -
N71: MONTADOR ANDAMIAJE | O71: montador andamiaje | P71: Retenido | Q71: Retenido | R71: Retenido
N72: ODONTOLOGO/A | O72: odontologo/a | P72: - | Q72: - | R72: -
N73: OPERADOR ALTURA | O73: operador altura | P73: Retenido | Q73: Retenido | R73: Retenido
N74: OPERADOR GRÚA | O74: operador grúa | P74: Retenido | Q74: Retenido | R74: Retenido
N75: OPERADOR PLANTA REFINO | O75: operador planta refino | P75: - | Q75: 2 | R75: 1
N76: OPERARIO CADENA PRODUCCIÓN | O76: operario cadena producción | P76: - | Q76: 0.5 | R76: -
N77: OTROS (CONSTRUCCION) | O77: otros (construccion) | P77: - | Q77: 1 | R77: 1
N78: PELUQUERO/A | O78: peluquero/a | P78: - | Q78: - | R78: -
N79: PEÓN | O79: peón | P79: - | Q79: 1 | R79: 1
N80: PERIODISTA | O80: periodista | P80: - | Q80: - | R80: -
N81: PILOTO comercial mercancias | O81: piloto comercial mercancias | P81: Retenido | Q81: Retenido | R81: Retenido
N82: PILOTO comercial tripulación | O82: piloto comercial tripulación | P82: - | Q82: - | R82: 0.5
N83: PINTOR | O83: pintor | P83: - | Q83: 1 | R83: 1
N84: POLICIA LOCAL | O84: policia local | P84: - | Q84: - | R84: -
N85: POLICIA NACIONAL, MOSSO D'ESQUADRA | O85: policia nacional, mosso d'esquadra | P85: - | Q85: 0.5 | R85: 0.5
N86: PROFESOR/A O MAESTRO/A | O86: profesor/a o maestro/a | P86: - | Q86: - | R86: -
N87: PSICOLOGO/A | O87: psicologo/a | P87: - | Q87: - | R87: -
N88: PSICOLOGO/A CLINICA | O88: psicologo/a clinica | P88: - | Q88: - | R88: -
N89: PUBLICISTA | O89: publicista | P89: - | Q89: - | R89: -
N90: QUIMICO/A | O90: quimico/a | P90: - | Q90: - | R90: -
N91: RECEPCIONISTA | O91: recepcionista | P91: - | Q91: - | R91: -
N92: SECRETARIO/A | O92: secretario/a | P92: - | Q92: - | R92: -
N93: TAXISTA | O93: taxista | P93: - | Q93: 0.5 | R93: 1
N94: TECNICO MANTENIMIENTO | O94: tecnico mantenimiento | P94: - | Q94: 0.5 | R94: 0.5
N95: TRABAJADOR/A SOCIAL | O95: trabajador/a social | P95: - | Q95: - | R95: -
N96: TRADUCTOR/A | O96: traductor/a | P96: - | Q96: - | R96: -
N97: TRANSPORTISTA | O97: transportista | P97: - | Q97: 1 | R97: 1
N98: VENDEDOR/A | O98: vendedor/a | P98: - | Q98: - | R98: -
N99: VIGILANTE SEGURIDAD | O99: vigilante seguridad | P99: - | Q99: 0.5 | R99: 1
N100: YESERO | O100: yesero | P100: - | Q100: 1 | R100: 0.5

Sheet Presupuesto (hidden)
B12: Presupuesto Seguro Asisa Vida Tranquilidad
C17: Fecha efecto | D17: ='Datos entrada'!C12 -> 2017-01-01
B20: A continuación le presentamos su presupuesto personalizado de Vida Riesgo, que ha sido diseñado especialmente para usted de acuerdo
B21: con la información que nos ha facilitado
F22: 1 | G22: Anual
B23: Datos del asegurado | F23: 2 | G23: Semestral
B24: Nombre: | C24: ='Datos entrada'!C15 -> xxxxx | F24: 4 | G24: Trimestral
B25: Fecha de nacimiento: | D25: ='Datos entrada'!C14 -> 1977-01-01 | F25: 12 | G25: Mensual
B26: Edad actuarial: | D26: ='Datos entrada'!C18 -> 40
B27: Sexo: | D27: ='Datos entrada'!C16 -> Mujer
B28: Deportes/ocio: | D28: ='Datos entrada'!C20 -> Sin práctica deportiva/ocio de riesgo
B29: Profesión: | D29: ='Datos entrada'!C21 -> traductor/a
B30: NIF: | D30: ='Datos entrada'!C17 -> xxxxyyyyyy
B31: Forma de pago | D31: ='Datos entrada'!C32 -> Anual
B33: Servicios, garantías, capitales solicitados y prima
B34: Servicios y garantías | C34: Capitales asegurados
B36: Fallecimiento por cualquier causa | C36: ='Datos entrada'!C19 -> 100000
B37: Incapacidad permanente absoluta por cualquier causa | C37: =IF('Datos entrada'!C27="Si",'Datos entrada'!C19,"") -> 100000
B38: Fallecimiento por accidente | C38: =IF('Datos entrada'!C28="Si",'Datos entrada'!C19,"") -> 
B39: Incapacidad permanente por accidente | C39: =IF('Datos entrada'!C29="Si",'Datos entrada'!C19,"") -> 
B40: Total prima neta: | D40: =IF(Tarificador!J6="Retenido","Consultar prima por profesión",IF(Tarificador!J5="Retenido","Consultar prima por deporte",IF(Tarificador!E4<50,"Prima inferior al límite mínimo",IF(Tarificador!G7<30,"Recibo inferior al límite mínimo",Tarificador!P23)))) -> 132.5535258
B41: Total impuestos repercutibles: | D41: =IF(Tarificador!J6="Retenido","-",IF(Tarificador!J5="Retenido","-",IF(Tarificador!E4<50,"-",IF(Tarificador!G7<30,"-",Tarificador!Q23)))) -> 2.5341125
B42: Total prima primera anualidad: | D42: =IF(Tarificador!J6="Retenido","-",IF(Tarificador!J5="Retenido","-",IF(Tarificador!E4<50,"-",IF(Tarificador!G7<30,"-",Tarificador!R23)))) -> 135.0876383
B43: Importe primer recibo: | D43: =IF(Tarificador!J5="Retenido","-",IF(Tarificador!J6="Retenido","-",IF(Tarificador!G7<30,"-",Tarificador!G7))) -> -
B44: Importe recibos siguientes: | D44: =IF(Tarificador!J5="Retenido","-",IF(Tarificador!J6="Retenido","-",IF(Tarificador!G7<30,"-",Tarificador!G6))) -> -
B46: (*) Este presupuesto es de carácter informativo y no vincula a la aceptación del capital, garantías y primas en él reflejadas que
B47: dependen de la valoración y aceptación del riesgo en base a la política de suscripción de Asisa Vida.
B50: ASISA VIDA SEGUROS, S.A.
B51: C.I.F.: A87425070 | D51: Inscrita al Tomo 34.096, Folio 49, Sección 8 Hoja
B52: Domicilio social: c/ Juan Ignacio Luca de Tena, 12, 28027 Madrid | D52: M-613345, Inscripción 1ª. C
C54: =CONCATENATE(Tarificador!K4,Tarificador!K9) -> Ref.- | D54: =CONCATENATE(Tarificador!L4,Tarificador!L9) -> Versión-

Sheet Nota informativa (hidden)

Sheet Solicitud nivel 1 (hidden)

Sheet Solicitud (hidden)

Sheet Tarificador (hidden)
A1: Tarificador seguro ASISA VIDA TRANQUILIDAD
D4: PRIMA ANUAL | E4: =R23 -> 135.0876383 | K4: Ref. | L4: Versión
A5: Edad: | B5: ='Datos entrada'!K16 -> 40 | D5: Prima anual sin consorcio | G5: =IF(B7="Anual","-",H23+I23+J23+K23+L23) -> - | I5: ='Datos entrada'!C20 -> Sin práctica deportiva/ocio de riesgo | J5: =VLOOKUP(Tarificador!I5,'Datos entrada'!S2:T69,2,0) -> Sin recargo
D6: Importe por recibo | G6: =IF(B7="Anual","-",IF(B7="Anual",(H23+I23+J23)/1,IF(B7="Semestral",(H23+I23+J23)/2,IF(B7="Trimestral",(H23+I23+J23)/4,(H23+I23+J23)/12)))) -> - | I6: ='Datos entrada'!C21 -> traductor/a | J6: =VLOOKUP(Tarificador!I6,'Datos entrada'!O2:R100,2,0) -> - | K6: =VLOOKUP(Tarificador!I6,'Datos entrada'!O2:R100,3,0) -> - | L6: =VLOOKUP(Tarificador!I6,'Datos entrada'!O2:R100,4,0) -> -
A7: Periodicidad | B7: ='Datos entrada'!C32 -> Anual | D7: Importe primer recibo | G7: =IF(B7="Anual","-",G6+L23+K23) -> - | J7: =IF(J6="Retenido","No","Si") -> Si | K7: =IF(K6="Retenido","No","Si") -> Si | L7: Si
J8: =IF(J7="Si",IF(J6="-",0,J6),"") -> 0 | K8: =IF(K7="Si",IF(K6="-",0,K6),"") -> 0 | L8: 0
A9: Capital | B9: ='Datos entrada'!C19 -> 100000 | K9: =IF(K6="Retenido","-",K6) -> - | L9: =IF(L6="Retenido","-",L6) -> -
A11: Gastos internos | B11: 0.05
A12: Gastos externos | B12: 0.2
I13: Recargo | O13: Garantias | P13: Prima total | R13: Prima total
B14: Tipo garantía | D14: Prima Pura | E14: Gastos interno | F14: Gasto fijo | G14: Gastos externos | H14: Prima comercial neta | I14: Fracci. | J14: IPS | K14: CLEA | L14: Consorcio | M14: IVA | N14: Prima total | O14: Seleccionadas | P14: neta | Q14: Solo Impuestos | R14: primera anualidad
A15: Fallecimiento | B15: Obligatoria | D15: =VLOOKUP($B$5,'Tasas directo'!$A$4:$F$79,3,0)/1000*$B$9*(1+J8) -> 75.79316252 | E15: =D15*B11 -> 3.789658126 | F15: 0 | G15: =H15-D15-E15-F15 -> 19.89570516 | H15: =(D15*(1+B11)/(1-B12)+F15) -> 99.4785258 | I15: =VLOOKUP($B$7,'Recargos por fracc'!$A$1:$B$4,2,0)*H15 -> 0 | L15: =($B$9/1000)*0.005 -> 0.5 | N15: =SUM(H15:M15) -> 99.9785258 | O15: Si | P15: =IF(O15="Si",H15+I15,0) -> 99.4785258 | Q15: =IF(O15="Si",SUM(J15:M15),0) -> 0.5 | R15: =IF(O15="Si",N15,0) -> 99.9785258
A16: Fallec. Acc. | B16: Optativa | D16: =IF(O16="No",0,VLOOKUP($B$5,'Tasas directo'!$A$4:$F$79,5,0)/1000*$B$9)*(1+L8) -> 35 | E16: =D16*B11 -> 1.75 | F16: 0 | G16: 9.1875 | H16: =(D16*(1+B11)/(1-B12)+F16) -> 45.9375 | I16: =VLOOKUP($B$7,'Recargos por fracc'!$A$1:$B$4,2,0)*H16 -> 0 | J16: =(H16+I16)*0.06 -> 2.75625 | K16: =(H16+I16)*0.0015 -> 0.06890625 | L16: =IF(O16="Si",($B$9/1000)*0.005,0) -> 0 | N16: 48.76265625 | O16: ='Datos entrada'!C28 -> 0 | P16: 0 | Q16: 0 | R16: 0
A17: IPA | B17: Optativa | D17: =IF(O17="No",0,VLOOKUP($B$5,'Tasas directo'!$A$4:$F$79,4,0)/1000*$B$9)*(1+K8) -> 25.2 | E17: =D17*B11 -> 1.26 | F17: 0 | G17: =H17-D17-E17-F17 -> 6.615 | H17: =(D17*(1+B11)/(1-B12)+F17) -> 33.075 | I17: =VLOOKUP($B$7,'Recargos por fracc'!$A$1:$B$4,2,0)*H17 -> 0 | J17: =(H17+I17)*0.06 -> 1.9845 | K17: =(H17+I17)*0.0015 -> 0.0496125 | N17: 35.1091125 | O17: ='Datos entrada'!C27 -> Si | P17: 33.075 | Q17: 2.0341125 | R17: 35.1091125
A18: IPA por acc. | B18: Optativa | D18: =IF(O18="No",0,VLOOKUP($B$5,'Tasas directo'!$A$4:$F$79,6,0)/1000*$B$9)*(1+L8) -> 35 | E18: =D18*B11 -> 1.75 | F18: 0 | G18: =H18-D18-E18-F18 -> 9.1875 | H18: =(D18*(1+B11)/(1-B12)+F18) -> 45.9375 | I18: =VLOOKUP($B$7,'Recargos por fracc'!$A$1:$B$4,2,0)*H18 -> 0 | J18: =(H18+I18)*0.06 -> 2.75625 | K18: =(H18+I18)*0.0015 -> 0.06890625 | L18: =IF(AND(O18="Si",O16="No"),($B$9/1000)*0.005,0) -> 0 | N18: 48.76265625 | O18: ='Datos entrada'!C29 -> 0 | P18: 0 | Q18: 0 | R18: 0
A23: Totales | D23: =SUM(D15:D20) -> 170.9931625 | E23: 8.549658126 | F23: 0 | G23: 44.88570516 | H23: 224.4285258 | I23: 0 | J23: 7.497 | K23: 0.187425 | L23: 0.5 | M23: 0 | N23: =SUM(N15:N22) -> 232.6129508 | P23: =SUM(P15:P22) -> 132.5535258 | Q23: =SUM(Q15:Q21) -> 2.5341125 | R23: =SUM(R15:R22) -> 135.0876383

Sheet Tasas reaseguro (hidden)
A2: Pasem 2010 Ponderadas por salud | C2: Tasa reaseguro Fallecimiento por cualquier causa 65% tabla anterior | D2: Tasa reaseguro IPA por cualquier causa | E2: Tasa reaseguro Fallecimiento por accidente | F2: Tasa reaseguro IPA por accidente
A3: Edad | B3: Tasas en ‰ | C3: Tasas en ‰ | D3: Tasas en ‰ | E3: Tasas en ‰ | F3: Tasas en ‰
A4: 0 | B4: 5.287400734 | C4: =B4*65% -> 3.436810477
A5: 1 | B5: 0.397458448 | C5: =B5*65% -> 0.2583479912
A6: 2 | B6: 0.329059382 | C6: 0.2138885983
A7: 3 | B7: 0.2667491682 | C7: 0.1733869593
A8: 4 | B8: 0.2160831599 | C8: 0.1404540539
A9: 5 | B9: 0.179606321 | C9: 0.1167441086
A10: 6 | B10: 0.1555739698 | C10: 0.1011230803
A11: 7 | B11: 0.1424350761 | C11: 0.09258279944
A12: 8 | B12: 0.1371479419 | C12: 0.08914616226
A13: 9 | B13: 0.1379297686 | C13: 0.08965434961
A14: 10 | B14: 0.1470263184 | C14: 0.09556710696
A15: 11 | B15: 0.1643344889 | C15: 0.1068174178
A16: 12 | B16: 0.1929397625 | C16: 0.1254108456
A17: 13 | B17: 0.2343868086 | C17: 0.1523514256
A18: 14 | B18: 0.2909747412 | C18: 0.1891335818
A19: 15 | B19: 0.3598689964 | C19: 0.2339148477
A20: 16 | B20: 0.4384037219 | C20: 0.2849624192
A21: 17 | B21: 0.5127697164 | C21: 0.3333003156
A22: 18 | B22: 0.518384736 | C22: 0.3369500784 | D22: 0.2 | E22: 0.3 | F22: 0.3
A23: 19 | B23: 0.5320081887 | C23: 0.3458053226 | D23: 0.2 | E23: 0.3 | F23: 0.3
A24: 20 | B24: 0.5435477151 | C24: 0.3533060148 | D24: 0.2 | E24: 0.3 | F24: 0.3
A25: 21 | B25: 0.5593657458 | C25: 0.3635877347 | D25: 0.2 | E25: 0.3 | F25: 0.3
A26: 22 | B26: 0.5731776546 | C26: 0.3725654755 | D26: 0.2 | E26: 0.3 | F26: 0.3
A27: 23 | B27: 0.5865945187 | C27: 0.3812864372 | D27: 0.2 | E27: 0.3 | F27: 0.3
A28: 24 | B28: 0.5969647629 | C28: 0.3880270959 | D28: 0.2 | E28: 0.3 | F28: 0.3
A29: 25 | B29: 0.5953745399 | C29: 0.3869934509 | D29: 0.2 | E29: 0.3 | F29: 0.3
A30: 26 | B30: 0.5802131894 | C30: 0.3771385731 | D30: 0.2 | E30: 0.3 | F30: 0.3
A31: 27 | B31: 0.56379144 | C31: 0.366464436 | D31: 0.2 | E31: 0.3 | F31: 0.3
A32: 28 | B32: 0.5433493381 | C32: 0.3531770698 | D32: 0.2 | E32: 0.3 | F32: 0.3
A33: 29 | B33: 0.5253209895 | C33: 0.3414586431 | D33: 0.2 | E33: 0.3 | F33: 0.3
A34: 30 | B34: 0.5088978689 | C34: 0.3307836148 | D34: 0.18 | E34: 0.3 | F34: 0.3
A35: 31 | B35: 0.5081727047 | C35: 0.3303122581 | D35: 0.18 | E35: 0.3 | F35: 0.3
A36: 32 | B36: 0.5174462425 | C36: 0.3363400576 | D36: 0.18 | E36: 0.3 | F36: 0.3
A37: 33 | B37: 0.5442745737 | C37: 0.3537784729 | D37: 0.18 | E37: 0.3 | F37: 0.3
A38: 34 | B38: 0.589207882 | C38: 0.3829851233 | D38: 0.18 | E38: 0.3 | F38: 0.3
A39: 35 | B39: 0.6551665527 | C39: 0.4258582592 | D39: 0.2 | E39: 0.3 | F39: 0.3
A40: 36 | B40: 0.7404582426 | C40: 0.4812978577 | D40: 0.2 | E40: 0.3 | F40: 0.3
A41: 37 | B41: 0.8326777778 | C41: 0.5412405556 | D41: 0.2 | E41: 0.3 | F41: 0.3
A42: 38 | B42: 0.9287168025 | C42: 0.6036659216 | D42: 0.2 | E42: 0.3 | F42: 0.3
A43: 39 | B43: 1.044399478 | C43: 0.6788596605 | D43: 0.2 | E43: 0.3 | F43: 0.3
A44: 40 | B44: 1.166048654 | C44: 0.7579316252 | D44: 0.24 | E44: 0.3 | F44: 0.3
A45: 41 | B45: 1.307551781 | C45: 0.8499086574 | D45: 0.27 | E45: 0.3 | F45: 0.3
A46: 42 | B46: 1.458102765 | C46: 0.9477667975 | D46: 0.3 | E46: 0.3 | F46: 0.3
A47: 43 | B47: 1.624095111 | C47: 1.055661822 | D47: 0.35 | E47: 0.3 | F47: 0.3
A48: 44 | B48: 1.793759671 | C48: 1.165943786 | D48: 0.4 | E48: 0.3 | F48: 0.3
A49: 45 | B49: 1.96911923 | C49: 1.279927499 | D49: 0.43 | E49: 0.3 | F49: 0.3
A50: 46 | B50: 2.16272995 | C50: 1.405774467 | D50: 0.48 | E50: 0.3 | F50: 0.3
A51: 47 | B51: 2.379508654 | C51: 1.546680625 | D51: 0.52 | E51: 0.3 | F51: 0.3
A52: 48 | B52: 2.630313165 | C52: 1.709703557 | D52: 0.55 | E52: 0.3 | F52: 0.3
A53: 49 | B53: 2.9071524 | C53: 1.88964906 | D53: 0.6 | E53: 0.3 | F53: 0.3
A54: 50 | B54: 3.21980446 | C54: 2.092872899 | D54: 0.67 | E54: 0.3 | F54: 0.3
A55: 51 | B55: 3.577474402 | C55: 2.325358361 | D55: 0.7 | E55: 0.3 | F55: 0.3
A56: 52 | B56: 3.973471789 | C56: 2.582756663 | D56: 0.75 | E56: 0.3 | F56: 0.3
A57: 53 | B57: 4.325775224 | C57: 2.811753896 | D57: 0.8 | E57: 0.3 | F57: 0.3
A58: 54 | B58: 4.711561208 | C58: 3.062514785 | D58: 0.9 | E58: 0.3 | F58: 0.3
A59: 55 | B59: 5.106545229 | C59: 3.319254399 | D59: 1 | E59: 0.3 | F59: 0.3
A60: 56 | B60: 5.538431027 | C60: 3.599980167 | D60: 1.221 | E60: 0.3 | F60: 0.3
A61: 57 | B61: 5.968939244 | C61: 3.879810509 | D61: 1.331 | E61: 0.3 | F61: 0.3
A62: 58 | B62: 6.375689913 | C62: 4.144198443 | D62: 1.452 | E62: 0.3 | F62: 0.3
A63: 59 | B63: 6.785918425 | C63: 4.410846976 | D63: 1.573 | E63: 0.3 | F63: 0.3
A64: 60 | B64: 7.16211978 | C64: 4.655377857 | D64: 1.727 | E64: 0.3 | F64: 0.3
A65: 61 | B65: 7.511026072 | C65: 4.882166947 | D65: 1.881 | E65: 0.3 | F65: 0.3
A66: 62 | B66: 7.854428938 | C66: 5.10537881 | D66: 2.057 | E66: 0.3 | F66: 0.3
A67: 63 | B67: 8.303224372 | C67: 5.397095842 | D67: 2.244 | E67: 0.3 | F67: 0.3
A68: 64 | B68: 8.723685902 | C68: 5.670395836 | D68: 2.453 | E68: 0.3 | F68: 0.3
A69: 65 | B69: 9.273712806 | C69: =B69*65% -> 6.027913324 | D69: 2.697 | E69: 0.3 | F69: 0.3
A70: 66 | B70: 10.2254431 | C70: 6.646538013 | D70: 2.967 | E70: 0.3 | F70: 0.3
A71: 67 | B71: 11.40255702 | C71: 7.411662062 | D71: 3.263 | E71: 0.3 | F71: 0.3
A72: 68 | B72: 12.783653 | C72: 8.309374447
A73: 69 | B73: 14.32929216 | C73: 9.314039906
A74: 70 | B74: 16.25406126 | C74: 10.56513982
A75: 71 | B75: 18.42763508 | C75: 11.9779628
A76: 72 | B76: 20.80257516 | C76: 13.52167385
A77: 73 | B77: 24.45275784 | C77: 15.89429259
A78: 74 | B78: 29.17731504 | C78: 18.96525477
A79: 75 | B79: 34.9070261 | C79: 22.68956697

Sheet Tasas directo (hidden)
A2: Pasem 2010 Ponderadas por salud | C2: Tasa directo Fallecimiento por cualquier causa 65% tabla anterior | D2: Tasa directo IPA por cualquier causa | E2: Tasa directo Fallecimiento por accidente | F2: Tasa directo IPA por accidente
A3: Edad | B3: Tasas en ‰ | C3: Tasas en ‰ | D3: Tasas en ‰ | E3: Tasas en ‰ | F3: Tasas en ‰
A4: 0 | B4: 5.287400734 | C4: =B4*65% -> 3.436810477
A5: 1 | B5: 0.397458448 | C5: =B5*65% -> 0.2583479912
A6: 2 | B6: 0.329059382 | C6: 0.2138885983
A7: 3 | B7: 0.2667491682 | C7: 0.1733869593
A8: 4 | B8: 0.2160831599 | C8: 0.1404540539
A9: 5 | B9: 0.179606321 | C9: 0.1167441086
A10: 6 | B10: 0.1555739698 | C10: 0.1011230803
A11: 7 | B11: 0.1424350761 | C11: 0.09258279944
A12: 8 | B12: 0.1371479419 | C12: 0.08914616226
A13: 9 | B13: 0.1379297686 | C13: 0.08965434961
A14: 10 | B14: 0.1470263184 | C14: 0.09556710696
A15: 11 | B15: 0.1643344889 | C15: 0.1068174178
A16: 12 | B16: 0.1929397625 | C16: 0.1254108456
A17: 13 | B17: 0.2343868086 | C17: 0.1523514256
A18: 14 | B18: 0.2909747412 | C18: 0.1891335818
A19: 15 | B19: 0.3598689964 | C19: 0.2339148477
A20: 16 | B20: 0.4384037219 | C20: 0.2849624192
A21: 17 | B21: 0.5127697164 | C21: 0.3333003156
A22: 18 | B22: 0.518384736 | C22: 0.3369500784 | D22: ='Tasas reaseguro'!D22*1.05 -> 0.21 | E22: 0.35 | F22: 0.35
A23: 19 | B23: 0.5320081887 | C23: 0.3458053226 | D23: ='Tasas reaseguro'!D23*1.05 -> 0.21 | E23: 0.35 | F23: 0.35
A24: 20 | B24: 0.5435477151 | C24: 0.3533060148 | D24: ='Tasas reaseguro'!D24*1.05 -> 0.21 | E24: 0.35 | F24: 0.35
A25: 21 | B25: 0.5593657458 | C25: 0.3635877347 | D25: ='Tasas reaseguro'!D25*1.05 -> 0.21 | E25: 0.35 | F25: 0.35
A26: 22 | B26: 0.5731776546 | C26: 0.3725654755 | D26: ='Tasas reaseguro'!D26*1.05 -> 0.21 | E26: 0.35 | F26: 0.35
A27: 23 | B27: 0.5865945187 | C27: 0.3812864372 | D27: ='Tasas reaseguro'!D27*1.05 -> 0.21 | E27: 0.35 | F27: 0.35
A28: 24 | B28: 0.5969647629 | C28: 0.3880270959 | D28: ='Tasas reaseguro'!D28*1.05 -> 0.21 | E28: 0.35 | F28: 0.35
A29: 25 | B29: 0.5953745399 | C29: 0.3869934509 | D29: ='Tasas reaseguro'!D29*1.05 -> 0.21 | E29: 0.35 | F29: 0.35
A30: 26 | B30: 0.5802131894 | C30: 0.3771385731 | D30: ='Tasas reaseguro'!D30*1.05 -> 0.21 | E30: 0.35 | F30: 0.35
A31: 27 | B31: 0.56379144 | C31: 0.366464436 | D31: ='Tasas reaseguro'!D31*1.05 -> 0.21 | E31: 0.35 | F31: 0.35
A32: 28 | B32: 0.5433493381 | C32: 0.3531770698 | D32: ='Tasas reaseguro'!D32*1.05 -> 0.21 | E32: 0.35 | F32: 0.35
A33: 29 | B33: 0.5253209895 | C33: 0.3414586431 | D33: ='Tasas reaseguro'!D33*1.05 -> 0.21 | E33: 0.35 | F33: 0.35
A34: 30 | B34: 0.5088978689 | C34: 0.3307836148 | D34: ='Tasas reaseguro'!D34*1.05 -> 0.189 | E34: 0.35 | F34: 0.35
A35: 31 | B35: 0.5081727047 | C35: 0.3303122581 | D35: ='Tasas reaseguro'!D35*1.05 -> 0.189 | E35: 0.35 | F35: 0.35
A36: 32 | B36: 0.5174462425 | C36: 0.3363400576 | D36: ='Tasas reaseguro'!D36*1.05 -> 0.189 | E36: 0.35 | F36: 0.35
A37: 33 | B37: 0.5442745737 | C37: 0.3537784729 | D37: ='Tasas reaseguro'!D37*1.05 -> 0.189 | E37: 0.35 | F37: 0.35
A38: 34 | B38: 0.589207882 | C38: 0.3829851233 | D38: ='Tasas reaseguro'!D38*1.05 -> 0.189 | E38: 0.35 | F38: 0.35
A39: 35 | B39: 0.6551665527 | C39: 0.4258582592 | D39: ='Tasas reaseguro'!D39*1.05 -> 0.21 | E39: 0.35 | F39: 0.35
A40: 36 | B40: 0.7404582426 | C40: 0.4812978577 | D40: ='Tasas reaseguro'!D40*1.05 -> 0.21 | E40: 0.35 | F40: 0.35
A41: 37 | B41: 0.8326777778 | C41: 0.5412405556 | D41: ='Tasas reaseguro'!D41*1.05 -> 0.21 | E41: 0.35 | F41: 0.35
A42: 38 | B42: 0.9287168025 | C42: 0.6036659216 | D42: ='Tasas reaseguro'!D42*1.05 -> 0.21 | E42: 0.35 | F42: 0.35
A43: 39 | B43: 1.044399478 | C43: 0.6788596605 | D43: ='Tasas reaseguro'!D43*1.05 -> 0.21 | E43: 0.35 | F43: 0.35
A44: 40 | B44: 1.166048654 | C44: 0.7579316252 | D44: ='Tasas reaseguro'!D44*1.05 -> 0.252 | E44: 0.35 | F44: 0.35
A45: 41 | B45: 1.307551781 | C45: 0.8499086574 | D45: ='Tasas reaseguro'!D45*1.05 -> 0.2835 | E45: 0.35 | F45: 0.35
A46: 42 | B46: 1.458102765 | C46: 0.9477667975 | D46: ='Tasas reaseguro'!D46*1.05 -> 0.315 | E46: 0.35 | F46: 0.35
A47: 43 | B47: 1.624095111 | C47: 1.055661822 | D47: ='Tasas reaseguro'!D47*1.05 -> 0.3675 | E47: 0.35 | F47: 0.35
A48: 44 | B48: 1.793759671 | C48: 1.165943786 | D48: ='Tasas reaseguro'!D48*1.05 -> 0.42 | E48: 0.35 | F48: 0.35
A49: 45 | B49: 1.96911923 | C49: 1.279927499 | D49: ='Tasas reaseguro'!D49*1.05 -> 0.4515 | E49: 0.35 | F49: 0.35
A50: 46 | B50: 2.16272995 | C50: 1.405774467 | D50: ='Tasas reaseguro'!D50*1.05 -> 0.504 | E50: 0.35 | F50: 0.35
A51: 47 | B51: 2.379508654 | C51: 1.546680625 | D51: ='Tasas reaseguro'!D51*1.05 -> 0.546 | E51: 0.35 | F51: 0.35
A52: 48 | B52: 2.630313165 | C52: 1.709703557 | D52: ='Tasas reaseguro'!D52*1.05 -> 0.5775 | E52: 0.35 | F52: 0.35
A53: 49 | B53: 2.9071524 | C53: 1.88964906 | D53: ='Tasas reaseguro'!D53*1.05 -> 0.63 | E53: 0.35 | F53: 0.35
A54: 50 | B54: 3.21980446 | C54: 2.092872899 | D54: ='Tasas reaseguro'!D54*1.05 -> 0.7035 | E54: 0.35 | F54: 0.35
A55: 51 | B55: 3.577474402 | C55: 2.325358361 | D55: ='Tasas reaseguro'!D55*1.05 -> 0.735 | E55: 0.35 | F55: 0.35
A56: 52 | B56: 3.973471789 | C56: 2.582756663 | D56: ='Tasas reaseguro'!D56*1.05 -> 0.7875 | E56: 0.35 | F56: 0.35
A57: 53 | B57: 4.325775224 | C57: 2.811753896 | D57: ='Tasas reaseguro'!D57*1.05 -> 0.84 | E57: 0.35 | F57: 0.35
A58: 54 | B58: 4.711561208 | C58: 3.062514785 | D58: ='Tasas reaseguro'!D58*1.05 -> 0.945 | E58: 0.35 | F58: 0.35
A59: 55 | B59: 5.106545229 | C59: 3.319254399 | D59: ='Tasas reaseguro'!D59*1.05 -> 1.05 | E59: 0.35 | F59: 0.35
A60: 56 | B60: 5.538431027 | C60: 3.599980167 | D60: ='Tasas reaseguro'!D60*1.05 -> 1.28205 | E60: 0.35 | F60: 0.35
A61: 57 | B61: 5.968939244 | C61: 3.879810509 | D61: ='Tasas reaseguro'!D61*1.05 -> 1.39755 | E61: 0.35 | F61: 0.35
A62: 58 | B62: 6.375689913 | C62: 4.144198443 | D62: ='Tasas reaseguro'!D62*1.05 -> 1.5246 | E62: 0.35 | F62: 0.35
A63: 59 | B63: 6.785918425 | C63: 4.410846976 | D63: ='Tasas reaseguro'!D63*1.05 -> 1.65165 | E63: 0.35 | F63: 0.35
A64: 60 | B64: 7.16211978 | C64: 4.655377857 | D64: ='Tasas reaseguro'!D64*1.05 -> 1.81335 | E64: 0.35 | F64: 0.35
A65: 61 | B65: 7.511026072 | C65: 4.882166947 | D65: ='Tasas reaseguro'!D65*1.05 -> 1.97505 | E65: 0.35 | F65: 0.35
A66: 62 | B66: 7.854428938 | C66: 5.10537881 | D66: ='Tasas reaseguro'!D66*1.05 -> 2.15985 | E66: 0.35 | F66: 0.35
A67: 63 | B67: 8.303224372 | C67: 5.397095842 | D67: ='Tasas reaseguro'!D67*1.05 -> 2.3562 | E67: 0.35 | F67: 0.35
A68: 64 | B68: 8.723685902 | C68: 5.670395836 | D68: ='Tasas reaseguro'!D68*1.05 -> 2.57565 | E68: 0.35 | F68: 0.35
A69: 65 | B69: 9.273712806 | C69: =B69*65% -> 6.027913324 | D69: ='Tasas reaseguro'!D69*1.05 -> 2.83185 | E69: 0.35 | F69: 0.35
A70: 66 | B70: 10.2254431 | C70: 6.646538013 | D70: ='Tasas reaseguro'!D70*1.05 -> 3.11535 | E70: 0.35 | F70: 0.35
A71: 67 | B71: 11.40255702 | C71: 7.411662062 | D71: ='Tasas reaseguro'!D71*1.05 -> 3.42615 | E71: 0.35 | F71: 0.35
A72: 68 | B72: 12.783653 | C72: 8.309374447
A73: 69 | B73: 14.32929216 | C73: 9.314039906
A74: 70 | B74: 16.25406126 | C74: 10.56513982
A75: 71 | B75: 18.42763508 | C75: 11.9779628
A76: 72 | B76: 20.80257516 | C76: 13.52167385
A77: 73 | B77: 24.45275784 | C77: 15.89429259
A78: 74 | B78: 29.17731504 | C78: 18.96525477
A79: 75 | B79: 34.9070261 | C79: 22.68956697

Sheet Tasas imp.incl. Asisa VRT (hidden)
A1: Tasas seguro Asisa Vida Riesgo Tradicional (impuestos incluidos)
A2: (*) Las garantías complementarias de accidentes incluyen el Consorcio
B4: Tasas Fallecimiento por cualquier causa | C4: Tasa IPA por cualquier causa | D4: Tasa Fallecimiento por accidente | E4: Tasa IPA por accidente
A5: Edad | B5: Tasas en ‰ | C5: Tasas en ‰ | D5: Tasas en ‰ | E5: Tasas en ‰
A6: 14 | B6: 0.2532378261
A7: 15 | B7: 0.3120132376
A8: 16 | B8: 0.3790131752
A9: 17 | B9: 0.4424566643
A10: 18 | B10: 0.4472469779 | C10: 0.2925759375 | D10: 0.4926265625 | E10: 0.4926265625
A11: 19 | B11: 0.458869486 | C11: 0.2925759375 | D11: 0.4926265625 | E11: 0.4926265625
A12: 20 | B12: 0.4687141444 | C12: 0.2925759375 | D12: 0.4926265625 | E12: 0.4926265625
A13: 21 | B13: 0.4822089019 | C13: 0.2925759375 | D13: 0.4926265625 | E13: 0.4926265625
A14: 22 | B14: 0.4939921866 | C14: 0.2925759375 | D14: 0.4926265625 | E14: 0.4926265625
A15: 23 | B15: 0.5054384488 | C15: 0.2925759375 | D15: 0.4926265625 | E15: 0.4926265625
A16: 24 | B16: 0.5142855633 | C16: 0.2925759375 | D16: 0.4926265625 | E16: 0.4926265625
A17: 25 | B17: 0.5129289043 | C17: 0.2925759375 | D17: 0.4926265625 | E17: 0.4926265625
A18: 26 | B18: 0.4999943772 | C18: 0.2925759375 | D18: 0.4926265625 | E18: 0.4926265625
A19: 27 | B19: 0.4859845722 | C19: 0.2925759375 | D19: 0.4926265625 | E19: 0.4926265625
A20: 28 | B20: 0.4685449041 | C20: 0.2925759375 | D20: 0.4926265625 | E20: 0.4926265625
A21: 29 | B21: 0.4531644691 | C21: 0.2925759375 | D21: 0.4926265625 | E21: 0.4926265625
A22: 30 | B22: 0.4391534944 | C22: 0.2633183438 | D22: 0.4926265625 | E22: 0.4926265625
A23: 31 | B23: 0.4385348387 | C23: 0.2633183438 | D23: 0.4926265625 | E23: 0.4926265625
A24: 32 | B24: 0.4464463256 | C24: 0.2633183438 | D24: 0.4926265625 | E24: 0.4926265625
A25: 33 | B25: 0.4693342457 | C25: 0.2633183438 | D25: 0.4926265625 | E25: 0.4926265625
A26: 34 | B26: 0.5076679743 | C26: 0.2633183438 | D26: 0.4926265625 | E26: 0.4926265625
A27: 35 | B27: 0.5639389652 | C27: 0.2925759375 | D27: 0.4926265625 | E27: 0.4926265625
A28: 36 | B28: 0.6367034383 | C28: 0.2925759375 | D28: 0.4926265625 | E28: 0.4926265625
A29: 37 | B29: 0.7153782292 | C29: 0.2925759375 | D29: 0.4926265625 | E29: 0.4926265625
A30: 38 | B30: 0.7973115221 | C30: 0.2925759375 | D30: 0.4926265625 | E30: 0.4926265625
A31: 39 | B31: 0.8960033044 | C31: 0.2925759375 | D31: 0.4926265625 | E31: 0.4926265625
A32: 40 | B32: 0.999785258 | C32: 0.351091125 | D32: 0.4926265625 | E32: 0.4926265625
A33: 41 | B33: 1.120505113 | C33: 0.3949775156 | D33: 0.4926265625 | E33: 0.4926265625
A34: 42 | B34: 1.248943922 | C34: 0.4388639063 | D34: 0.4926265625 | E34: 0.4926265625
A35: 43 | B35: 1.390556142 | C35: 0.5120078906 | D35: 0.4926265625 | E35: 0.4926265625
A36: 44 | B36: 1.535301219 | C36: 0.585151875 | D36: 0.4926265625 | E36: 0.4926265625
A37: 45 | B37: 1.684904843 | C37: 0.6290382656 | D37: 0.4926265625 | E37: 0.4926265625
A38: 46 | B38: 1.850078988 | C38: 0.70218225 | D38: 0.4926265625 | E38: 0.4926265625
A39: 47 | B39: 2.03501832 | C39: 0.7606974375 | D39: 0.4926265625 | E39: 0.4926265625
A40: 48 | B40: 2.248985919 | C40: 0.8045838281 | D40: 0.4926265625 | E40: 0.4926265625
A41: 49 | B41: 2.485164391 | C41: 0.8777278125 | D41: 0.4926265625 | E41: 0.4926265625
A42: 50 | B42: 2.75189568 | C42: 0.9801293906 | D42: 0.4926265625 | E42: 0.4926265625
A43: 51 | B43: 3.057032849 | C43: 1.024015781 | D43: 0.4926265625 | E43: 0.4926265625
A44: 52 | B44: 3.39486812 | C44: 1.097159766 | D44: 0.4926265625 | E44: 0.4926265625
A45: 53 | B45: 3.695426988 | C45: 1.17030375 | D45: 0.4926265625 | E45: 0.4926265625
A46: 54 | B46: 4.024550655 | C46: 1.316591719 | D46: 0.4926265625 | E46: 0.4926265625
A47: 55 | B47: 4.361521399 | C47: 1.462879688 | D47: 0.4926265625 | E47: 0.4926265625
A48: 56 | B48: 4.72997397 | C48: 1.786176098 | D48: 0.4926265625 | E48: 0.4926265625
A49: 57 | B49: 5.097251293 | C49: 1.947092864 | D49: 0.4926265625 | E49: 0.4926265625
A50: 58 | B50: 5.444260457 | C50: 2.124101306 | D50: 0.4926265625 | E50: 0.4926265625
A51: 59 | B51: 5.794236656 | C51: 2.301109748 | D51: 0.4926265625 | E51: 0.4926265625
A52: 60 | B52: 6.115183437 | C52: 2.52639322 | D52: 0.4926265625 | E52: 0.4926265625
A53: 61 | B53: 6.412844118 | C53: 2.751676692 | D53: 0.4926265625 | E53: 0.4926265625
A54: 62 | B54: 6.705809688 | C54: 3.009143517 | D54: 0.4926265625 | E54: 0.4926265625
A55: 63 | B55: 7.088688292 | C55: 3.282702019 | D55: 0.4926265625 | E55: 0.4926265625
A56: 64 | B56: 7.447394535 | C56: 3.588443873 | D56: 0.4926265625 | E56: 0.4926265625
A57: 65 | B57: 7.916636238 | C57: 3.945386517 | D57: 0.4926265625 | E57: 0.4926265625
A58: 66 | B58: 8.728581141 | C58: 4.340364033 | D58: 0.4926265625 | E58: 0.4926265625
A59: 67 | B59: 9.732806456 | C59: 4.77337642 | D59: 0.4926265625 | E59: 0.4926265625
A60: 68 | B60: 10.91105396
A61: 69 | B61: 12.22967738
A62: 70 | B62: 13.87174601
A63: 71 | B63: 15.72607618
A64: 72 | B64: 17.75219693
A65: 73 | B65: 20.86625903
A66: 74 | B66: 24.89689689
A67: 75 | B67: 29.78505665

Sheet Prima 50.000 € (hidden)
A1: Prima Asisa Vida Tranquilidad (impuestos incluidos)
A2: Capital: 50.000 € (forma pago anual)
A4: Edad | B4: Prima Fallecimiento por cualquier causa | C4: Prima IPA por cualquier causa | D4: Prima Fallecimiento por accidente | E4: Prima IPA por accidente
A5: 18 | B5: ='Tasas imp.incl. Asisa VRT'!B10*50000/1000 -> 22.36234889 | C5: ='Tasas imp.incl. Asisa VRT'!C10*50000/1000 -> 14.62879688 | D5: ='Tasas imp.incl. Asisa VRT'!D10*50000/1000 -> 24.63132812 | E5: ='Tasas imp.incl. Asisa VRT'!E10*50000/1000 -> 24.63132812
A6: 19 | B6: ='Tasas imp.incl. Asisa VRT'!B11*50000/1000 -> 22.9434743 | C6: ='Tasas imp.incl. Asisa VRT'!C11*50000/1000 -> 14.62879688 | D6: ='Tasas imp.incl. Asisa VRT'!D11*50000/1000 -> 24.63132812 | E6: ='Tasas imp.incl. Asisa VRT'!E11*50000/1000 -> 24.63132812
A7: 20 | B7: ='Tasas imp.incl. Asisa VRT'!B12*50000/1000 -> 23.43570722 | C7: ='Tasas imp.incl. Asisa VRT'!C12*50000/1000 -> 14.62879688 | D7: ='Tasas imp.incl. Asisa VRT'!D12*50000/1000 -> 24.63132812 | E7: ='Tasas imp.incl. Asisa VRT'!E12*50000/1000 -> 24.63132812
A8: 21 | B8: ='Tasas imp.incl. Asisa VRT'!B13*50000/1000 -> 24.11044509 | C8: ='Tasas imp.incl. Asisa VRT'!C13*50000/1000 -> 14.62879688 | D8: ='Tasas imp.incl. Asisa VRT'!D13*50000/1000 -> 24.63132812 | E8: ='Tasas imp.incl. Asisa VRT'!E13*50000/1000 -> 24.63132812
A9: 22 | B9: ='Tasas imp.incl. Asisa VRT'!B14*50000/1000 -> 24.69960933 | C9: ='Tasas imp.incl. Asisa VRT'!C14*50000/1000 -> 14.62879688 | D9: ='Tasas imp.incl. Asisa VRT'!D14*50000/1000 -> 24.63132812 | E9: ='Tasas imp.incl. Asisa VRT'!E14*50000/1000 -> 24.63132812
A10: 23 | B10: ='Tasas imp.incl. Asisa VRT'!B15*50000/1000 -> 25.27192244 | C10: ='Tasas imp.incl. Asisa VRT'!C15*50000/1000 -> 14.62879688 | D10: ='Tasas imp.incl. Asisa VRT'!D15*50000/1000 -> 24.63132812 | E10: ='Tasas imp.incl. Asisa VRT'!E15*50000/1000 -> 24.63132812
A11: 24 | B11: ='Tasas imp.incl. Asisa VRT'!B16*50000/1000 -> 25.71427817 | C11: ='Tasas imp.incl. Asisa VRT'!C16*50000/1000 -> 14.62879688 | D11: ='Tasas imp.incl. Asisa VRT'!D16*50000/1000 -> 24.63132812 | E11: ='Tasas imp.incl. Asisa VRT'!E16*50000/1000 -> 24.63132812
A12: 25 | B12: ='Tasas imp.incl. Asisa VRT'!B17*50000/1000 -> 25.64644522 | C12: ='Tasas imp.incl. Asisa VRT'!C17*50000/1000 -> 14.62879688 | D12: ='Tasas imp.incl. Asisa VRT'!D17*50000/1000 -> 24.63132812 | E12: ='Tasas imp.incl. Asisa VRT'!E17*50000/1000 -> 24.63132812
A13: 26 | B13: ='Tasas imp.incl. Asisa VRT'!B18*50000/1000 -> 24.99971886 | C13: ='Tasas imp.incl. Asisa VRT'!C18*50000/1000 -> 14.62879688 | D13: ='Tasas imp.incl. Asisa VRT'!D18*50000/1000 -> 24.63132812 | E13: ='Tasas imp.incl. Asisa VRT'!E18*50000/1000 -> 24.63132812
A14: 27 | B14: ='Tasas imp.incl. Asisa VRT'!B19*50000/1000 -> 24.29922861 | C14: ='Tasas imp.incl. Asisa VRT'!C19*50000/1000 -> 14.62879688 | D14: ='Tasas imp.incl. Asisa VRT'!D19*50000/1000 -> 24.63132812 | E14: ='Tasas imp.incl. Asisa VRT'!E19*50000/1000 -> 24.63132812
A15: 28 | B15: ='Tasas imp.incl. Asisa VRT'!B20*50000/1000 -> 23.4272452 | C15: ='Tasas imp.incl. Asisa VRT'!C20*50000/1000 -> 14.62879688 | D15: ='Tasas imp.incl. Asisa VRT'!D20*50000/1000 -> 24.63132812 | E15: ='Tasas imp.incl. Asisa VRT'!E20*50000/1000 -> 24.63132812
A16: 29 | B16: ='Tasas imp.incl. Asisa VRT'!B21*50000/1000 -> 22.65822346 | C16: ='Tasas imp.incl. Asisa VRT'!C21*50000/1000 -> 14.62879688 | D16: ='Tasas imp.incl. Asisa VRT'!D21*50000/1000 -> 24.63132812 | E16: ='Tasas imp.incl. Asisa VRT'!E21*50000/1000 -> 24.63132812
A17: 30 | B17: ='Tasas imp.incl. Asisa VRT'!B22*50000/1000 -> 21.95767472 | C17: ='Tasas imp.incl. Asisa VRT'!C22*50000/1000 -> 13.16591719 | D17: ='Tasas imp.incl. Asisa VRT'!D22*50000/1000 -> 24.63132812 | E17: ='Tasas imp.incl. Asisa VRT'!E22*50000/1000 -> 24.63132812
A18: 31 | B18: ='Tasas imp.incl. Asisa VRT'!B23*50000/1000 -> 21.92674194 | C18: ='Tasas imp.incl. Asisa VRT'!C23*50000/1000 -> 13.16591719 | D18: ='Tasas imp.incl. Asisa VRT'!D23*50000/1000 -> 24.63132812 | E18: ='Tasas imp.incl. Asisa VRT'!E23*50000/1000 -> 24.63132812
A19: 32 | B19: ='Tasas imp.incl. Asisa VRT'!B24*50000/1000 -> 22.32231628 | C19: ='Tasas imp.incl. Asisa VRT'!C24*50000/1000 -> 13.16591719 | D19: ='Tasas imp.incl. Asisa VRT'!D24*50000/1000 -> 24.63132812 | E19: ='Tasas imp.incl. Asisa VRT'!E24*50000/1000 -> 24.63132812
A20: 33 | B20: ='Tasas imp.incl. Asisa VRT'!B25*50000/1000 -> 23.46671228 | C20: ='Tasas imp.incl. Asisa VRT'!C25*50000/1000 -> 13.16591719 | D20: ='Tasas imp.incl. Asisa VRT'!D25*50000/1000 -> 24.63132812 | E20: ='Tasas imp.incl. Asisa VRT'!E25*50000/1000 -> 24.63132812
A21: 34 | B21: ='Tasas imp.incl. Asisa VRT'!B26*50000/1000 -> 25.38339872 | C21: ='Tasas imp.incl. Asisa VRT'!C26*50000/1000 -> 13.16591719 | D21: ='Tasas imp.incl. Asisa VRT'!D26*50000/1000 -> 24.63132812 | E21: ='Tasas imp.incl. Asisa VRT'!E26*50000/1000 -> 24.63132812
A22: 35 | B22: ='Tasas imp.incl. Asisa VRT'!B27*50000/1000 -> 28.19694826 | C22: ='Tasas imp.incl. Asisa VRT'!C27*50000/1000 -> 14.62879688 | D22: ='Tasas imp.incl. Asisa VRT'!D27*50000/1000 -> 24.63132812 | E22: ='Tasas imp.incl. Asisa VRT'!E27*50000/1000 -> 24.63132812
A23: 36 | B23: ='Tasas imp.incl. Asisa VRT'!B28*50000/1000 -> 31.83517191 | C23: ='Tasas imp.incl. Asisa VRT'!C28*50000/1000 -> 14.62879688 | D23: ='Tasas imp.incl. Asisa VRT'!D28*50000/1000 -> 24.63132812 | E23: ='Tasas imp.incl. Asisa VRT'!E28*50000/1000 -> 24.63132812
A24: 37 | B24: ='Tasas imp.incl. Asisa VRT'!B29*50000/1000 -> 35.76891146 | C24: ='Tasas imp.incl. Asisa VRT'!C29*50000/1000 -> 14.62879688 | D24: ='Tasas imp.incl. Asisa VRT'!D29*50000/1000 -> 24.63132812 | E24: ='Tasas imp.incl. Asisa VRT'!E29*50000/1000 -> 24.63132812
A25: 38 | B25: ='Tasas imp.incl. Asisa VRT'!B30*50000/1000 -> 39.86557611 | C25: ='Tasas imp.incl. Asisa VRT'!C30*50000/1000 -> 14.62879688 | D25: ='Tasas imp.incl. Asisa VRT'!D30*50000/1000 -> 24.63132812 | E25: ='Tasas imp.incl. Asisa VRT'!E30*50000/1000 -> 24.63132812
A26: 39 | B26: ='Tasas imp.incl. Asisa VRT'!B31*50000/1000 -> 44.80016522 | C26: ='Tasas imp.incl. Asisa VRT'!C31*50000/1000 -> 14.62879688 | D26: ='Tasas imp.incl. Asisa VRT'!D31*50000/1000 -> 24.63132812 | E26: ='Tasas imp.incl. Asisa VRT'!E31*50000/1000 -> 24.63132812
A27: 40 | B27: ='Tasas imp.incl. Asisa VRT'!B32*50000/1000 -> 49.9892629 | C27: ='Tasas imp.incl. Asisa VRT'!C32*50000/1000 -> 17.55455625 | D27: ='Tasas imp.incl. Asisa VRT'!D32*50000/1000 -> 24.63132812 | E27: ='Tasas imp.incl. Asisa VRT'!E32*50000/1000 -> 24.63132812
A28: 41 | B28: ='Tasas imp.incl. Asisa VRT'!B33*50000/1000 -> 56.02525564 | C28: ='Tasas imp.incl. Asisa VRT'!C33*50000/1000 -> 19.74887578 | D28: ='Tasas imp.incl. Asisa VRT'!D33*50000/1000 -> 24.63132812 | E28: ='Tasas imp.incl. Asisa VRT'!E33*50000/1000 -> 24.63132812
A29: 42 | B29: ='Tasas imp.incl. Asisa VRT'!B34*50000/1000 -> 62.44719609 | C29: ='Tasas imp.incl. Asisa VRT'!C34*50000/1000 -> 21.94319531 | D29: ='Tasas imp.incl. Asisa VRT'!D34*50000/1000 -> 24.63132812 | E29: ='Tasas imp.incl. Asisa VRT'!E34*50000/1000 -> 24.63132812
A30: 43 | B30: ='Tasas imp.incl. Asisa VRT'!B35*50000/1000 -> 69.52780708 | C30: ='Tasas imp.incl. Asisa VRT'!C35*50000/1000 -> 25.60039453 | D30: ='Tasas imp.incl. Asisa VRT'!D35*50000/1000 -> 24.63132812 | E30: ='Tasas imp.incl. Asisa VRT'!E35*50000/1000 -> 24.63132812
A31: 44 | B31: ='Tasas imp.incl. Asisa VRT'!B36*50000/1000 -> 76.76506095 | C31: ='Tasas imp.incl. Asisa VRT'!C36*50000/1000 -> 29.25759375 | D31: ='Tasas imp.incl. Asisa VRT'!D36*50000/1000 -> 24.63132812 | E31: ='Tasas imp.incl. Asisa VRT'!E36*50000/1000 -> 24.63132812
A32: 45 | B32: ='Tasas imp.incl. Asisa VRT'!B37*50000/1000 -> 84.24524213 | C32: ='Tasas imp.incl. Asisa VRT'!C37*50000/1000 -> 31.45191328 | D32: ='Tasas imp.incl. Asisa VRT'!D37*50000/1000 -> 24.63132812 | E32: ='Tasas imp.incl. Asisa VRT'!E37*50000/1000 -> 24.63132812
A33: 46 | B33: ='Tasas imp.incl. Asisa VRT'!B38*50000/1000 -> 92.50394942 | C33: ='Tasas imp.incl. Asisa VRT'!C38*50000/1000 -> 35.1091125 | D33: ='Tasas imp.incl. Asisa VRT'!D38*50000/1000 -> 24.63132812 | E33: ='Tasas imp.incl. Asisa VRT'!E38*50000/1000 -> 24.63132812
A34: 47 | B34: ='Tasas imp.incl. Asisa VRT'!B39*50000/1000 -> 101.750916 | C34: ='Tasas imp.incl. Asisa VRT'!C39*50000/1000 -> 38.03487188 | D34: ='Tasas imp.incl. Asisa VRT'!D39*50000/1000 -> 24.63132812 | E34: ='Tasas imp.incl. Asisa VRT'!E39*50000/1000 -> 24.63132812
A35: 48 | B35: ='Tasas imp.incl. Asisa VRT'!B40*50000/1000 -> 112.4492959 | C35: ='Tasas imp.incl. Asisa VRT'!C40*50000/1000 -> 40.22919141 | D35: ='Tasas imp.incl. Asisa VRT'!D40*50000/1000 -> 24.63132812 | E35: ='Tasas imp.incl. Asisa VRT'!E40*50000/1000 -> 24.63132812
A36: 49 | B36: ='Tasas imp.incl. Asisa VRT'!B41*50000/1000 -> 124.2582196 | C36: ='Tasas imp.incl. Asisa VRT'!C41*50000/1000 -> 43.88639063 | D36: ='Tasas imp.incl. Asisa VRT'!D41*50000/1000 -> 24.63132812 | E36: ='Tasas imp.incl. Asisa VRT'!E41*50000/1000 -> 24.63132812
A37: 50 | B37: ='Tasas imp.incl. Asisa VRT'!B42*50000/1000 -> 137.594784 | C37: ='Tasas imp.incl. Asisa VRT'!C42*50000/1000 -> 49.00646953 | D37: ='Tasas imp.incl. Asisa VRT'!D42*50000/1000 -> 24.63132812 | E37: ='Tasas imp.incl. Asisa VRT'!E42*50000/1000 -> 24.63132812
A38: 51 | B38: ='Tasas imp.incl. Asisa VRT'!B43*50000/1000 -> 152.8516424 | C38: ='Tasas imp.incl. Asisa VRT'!C43*50000/1000 -> 51.20078906 | D38: ='Tasas imp.incl. Asisa VRT'!D43*50000/1000 -> 24.63132812 | E38: ='Tasas imp.incl. Asisa VRT'!E43*50000/1000 -> 24.63132812
A39: 52 | B39: ='Tasas imp.incl. Asisa VRT'!B44*50000/1000 -> 169.743406 | C39: ='Tasas imp.incl. Asisa VRT'!C44*50000/1000 -> 54.85798828 | D39: ='Tasas imp.incl. Asisa VRT'!D44*50000/1000 -> 24.63132812 | E39: ='Tasas imp.incl. Asisa VRT'!E44*50000/1000 -> 24.63132812
A40: 53 | B40: ='Tasas imp.incl. Asisa VRT'!B45*50000/1000 -> 184.7713494 | C40: ='Tasas imp.incl. Asisa VRT'!C45*50000/1000 -> 58.5151875 | D40: ='Tasas imp.incl. Asisa VRT'!D45*50000/1000 -> 24.63132812 | E40: ='Tasas imp.incl. Asisa VRT'!E45*50000/1000 -> 24.63132812
A41: 54 | B41: ='Tasas imp.incl. Asisa VRT'!B46*50000/1000 -> 201.2275328 | C41: ='Tasas imp.incl. Asisa VRT'!C46*50000/1000 -> 65.82958594 | D41: ='Tasas imp.incl. Asisa VRT'!D46*50000/1000 -> 24.63132812 | E41: ='Tasas imp.incl. Asisa VRT'!E46*50000/1000 -> 24.63132812
A42: 55 | B42: ='Tasas imp.incl. Asisa VRT'!B47*50000/1000 -> 218.0760699 | C42: ='Tasas imp.incl. Asisa VRT'!C47*50000/1000 -> 73.14398438 | D42: ='Tasas imp.incl. Asisa VRT'!D47*50000/1000 -> 24.63132812 | E42: ='Tasas imp.incl. Asisa VRT'!E47*50000/1000 -> 24.63132812
A43: 56 | B43: ='Tasas imp.incl. Asisa VRT'!B48*50000/1000 -> 236.4986985 | C43: ='Tasas imp.incl. Asisa VRT'!C48*50000/1000 -> 89.30880492 | D43: ='Tasas imp.incl. Asisa VRT'!D48*50000/1000 -> 24.63132812 | E43: ='Tasas imp.incl. Asisa VRT'!E48*50000/1000 -> 24.63132812
A44: 57 | B44: ='Tasas imp.incl. Asisa VRT'!B49*50000/1000 -> 254.8625646 | C44: ='Tasas imp.incl. Asisa VRT'!C49*50000/1000 -> 97.3546432 | D44: ='Tasas imp.incl. Asisa VRT'!D49*50000/1000 -> 24.63132812 | E44: ='Tasas imp.incl. Asisa VRT'!E49*50000/1000 -> 24.63132812
A45: 58 | B45: ='Tasas imp.incl. Asisa VRT'!B50*50000/1000 -> 272.2130228 | C45: ='Tasas imp.incl. Asisa VRT'!C50*50000/1000 -> 106.2050653 | D45: ='Tasas imp.incl. Asisa VRT'!D50*50000/1000 -> 24.63132812 | E45: ='Tasas imp.incl. Asisa VRT'!E50*50000/1000 -> 24.63132812
A46: 59 | B46: ='Tasas imp.incl. Asisa VRT'!B51*50000/1000 -> 289.7118328 | C46: ='Tasas imp.incl. Asisa VRT'!C51*50000/1000 -> 115.0554874 | D46: ='Tasas imp.incl. Asisa VRT'!D51*50000/1000 -> 24.63132812 | E46: ='Tasas imp.incl. Asisa VRT'!E51*50000/1000 -> 24.63132812
A47: 60 | B47: ='Tasas imp.incl. Asisa VRT'!B52*50000/1000 -> 305.7591719 | C47: ='Tasas imp.incl. Asisa VRT'!C52*50000/1000 -> 126.319661 | D47: ='Tasas imp.incl. Asisa VRT'!D52*50000/1000 -> 24.63132812 | E47: ='Tasas imp.incl. Asisa VRT'!E52*50000/1000 -> 24.63132812
A48: 61 | B48: ='Tasas imp.incl. Asisa VRT'!B53*50000/1000 -> 320.6422059 | C48: ='Tasas imp.incl. Asisa VRT'!C53*50000/1000 -> 137.5838346 | D48: ='Tasas imp.incl. Asisa VRT'!D53*50000/1000 -> 24.63132812 | E48: ='Tasas imp.incl. Asisa VRT'!E53*50000/1000 -> 24.63132812
A49: 62 | B49: ='Tasas imp.incl. Asisa VRT'!B54*50000/1000 -> 335.2904844 | C49: ='Tasas imp.incl. Asisa VRT'!C54*50000/1000 -> 150.4571759 | D49: ='Tasas imp.incl. Asisa VRT'!D54*50000/1000 -> 24.63132812 | E49: ='Tasas imp.incl. Asisa VRT'!E54*50000/1000 -> 24.63132812
A50: 63 | B50: ='Tasas imp.incl. Asisa VRT'!B55*50000/1000 -> 354.4344146 | C50: ='Tasas imp.incl. Asisa VRT'!C55*50000/1000 -> 164.1351009 | D50: ='Tasas imp.incl. Asisa VRT'!D55*50000/1000 -> 24.63132812 | E50: ='Tasas imp.incl. Asisa VRT'!E55*50000/1000 -> 24.63132812
A51: 64 | B51: ='Tasas imp.incl. Asisa VRT'!B56*50000/1000 -> 372.3697268 | C51: ='Tasas imp.incl. Asisa VRT'!C56*50000/1000 -> 179.4221937 | D51: ='Tasas imp.incl. Asisa VRT'!D56*50000/1000 -> 24.63132812 | E51: ='Tasas imp.incl. Asisa VRT'!E56*50000/1000 -> 24.63132812
A52: 65 | B52: ='Tasas imp.incl. Asisa VRT'!B57*50000/1000 -> 395.8318119 | C52: ='Tasas imp.incl. Asisa VRT'!C57*50000/1000 -> 197.2693259 | D52: ='Tasas imp.incl. Asisa VRT'!D57*50000/1000 -> 24.63132812 | E52: ='Tasas imp.incl. Asisa VRT'!E57*50000/1000 -> 24.63132812
A53: 66 | B53: ='Tasas imp.incl. Asisa VRT'!B58*50000/1000 -> 436.4290571 | C53: ='Tasas imp.incl. Asisa VRT'!C58*50000/1000 -> 217.0182016 | D53: ='Tasas imp.incl. Asisa VRT'!D58*50000/1000 -> 24.63132812 | E53: ='Tasas imp.incl. Asisa VRT'!E58*50000/1000 -> 24.63132812
A54: 67 | B54: ='Tasas imp.incl. Asisa VRT'!B59*50000/1000 -> 486.6403228 | C54: ='Tasas imp.incl. Asisa VRT'!C59*50000/1000 -> 238.668821 | D54: ='Tasas imp.incl. Asisa VRT'!D59*50000/1000 -> 24.63132812 | E54: ='Tasas imp.incl. Asisa VRT'!E59*50000/1000 -> 24.63132812
A55: 68 | B55: ='Tasas imp.incl. Asisa VRT'!B60*100000/1000 -> 1091.105396
A56: 69 | B56: ='Tasas imp.incl. Asisa VRT'!B61*100000/1000 -> 1222.967738
A57: 70 | B57: ='Tasas imp.incl. Asisa VRT'!B62*100000/1000 -> 1387.174601
A58: 71 | B58: ='Tasas imp.incl. Asisa VRT'!B63*100000/1000 -> 1572.607618
A59: 72 | B59: ='Tasas imp.incl. Asisa VRT'!B64*100000/1000 -> 1775.219693
A60: 73 | B60: ='Tasas imp.incl. Asisa VRT'!B65*100000/1000 -> 2086.625903
A61: 74 | B61: ='Tasas imp.incl. Asisa VRT'!B66*100000/1000 -> 2489.689689
A62: 75 | B62: ='Tasas imp.incl. Asisa VRT'!B67*100000/1000 -> 2978.505665
A64: * Edades no contratables, al ser límite edad de entrada 64 años, pero si se permite la permanencia si se refleja tasa
A66: ** Prima mínima por póliza 50 €. Si no alcanza 50 €, subir el capital asegurado o incrementar garantías

Sheet Prima 100.000 € (hidden)
A1: Prima Asisa Vida Tranquilidad (impuestos incluidos)**
A2: Capital: 100.000 € (forma pago anual)
A4: Edad | B4: Prima Fallecimiento por cualquier causa | C4: Prima IPA por cualquier causa | D4: Prima Fallecimiento por accidente | E4: Prima IPA por accidente
A5: 18 | B5: ='Tasas imp.incl. Asisa VRT'!B10*100000/1000 -> 44.72469779 | C5: ='Tasas imp.incl. Asisa VRT'!C10*100000/1000 -> 29.25759375 | D5: ='Tasas imp.incl. Asisa VRT'!D10*100000/1000 -> 49.26265625 | E5: ='Tasas imp.incl. Asisa VRT'!E10*100000/1000 -> 49.26265625
A6: 19 | B6: ='Tasas imp.incl. Asisa VRT'!B11*100000/1000 -> 45.8869486 | C6: ='Tasas imp.incl. Asisa VRT'!C11*100000/1000 -> 29.25759375 | D6: ='Tasas imp.incl. Asisa VRT'!D11*100000/1000 -> 49.26265625 | E6: ='Tasas imp.incl. Asisa VRT'!E11*100000/1000 -> 49.26265625
A7: 20 | B7: ='Tasas imp.incl. Asisa VRT'!B12*100000/1000 -> 46.87141444 | C7: ='Tasas imp.incl. Asisa VRT'!C12*100000/1000 -> 29.25759375 | D7: ='Tasas imp.incl. Asisa VRT'!D12*100000/1000 -> 49.26265625 | E7: ='Tasas imp.incl. Asisa VRT'!E12*100000/1000 -> 49.26265625
A8: 21 | B8: ='Tasas imp.incl. Asisa VRT'!B13*100000/1000 -> 48.22089019 | C8: ='Tasas imp.incl. Asisa VRT'!C13*100000/1000 -> 29.25759375 | D8: ='Tasas imp.incl. Asisa VRT'!D13*100000/1000 -> 49.26265625 | E8: ='Tasas imp.incl. Asisa VRT'!E13*100000/1000 -> 49.26265625
A9: 22 | B9: ='Tasas imp.incl. Asisa VRT'!B14*100000/1000 -> 49.39921866 | C9: ='Tasas imp.incl. Asisa VRT'!C14*100000/1000 -> 29.25759375 | D9: ='Tasas imp.incl. Asisa VRT'!D14*100000/1000 -> 49.26265625 | E9: ='Tasas imp.incl. Asisa VRT'!E14*100000/1000 -> 49.26265625
A10: 23 | B10: ='Tasas imp.incl. Asisa VRT'!B15*100000/1000 -> 50.54384488 | C10: ='Tasas imp.incl. Asisa VRT'!C15*100000/1000 -> 29.25759375 | D10: ='Tasas imp.incl. Asisa VRT'!D15*100000/1000 -> 49.26265625 | E10: ='Tasas imp.incl. Asisa VRT'!E15*100000/1000 -> 49.26265625
A11: 24 | B11: ='Tasas imp.incl. Asisa VRT'!B16*100000/1000 -> 51.42855633 | C11: ='Tasas imp.incl. Asisa VRT'!C16*100000/1000 -> 29.25759375 | D11: ='Tasas imp.incl. Asisa VRT'!D16*100000/1000 -> 49.26265625 | E11: ='Tasas imp.incl. Asisa VRT'!E16*100000/1000 -> 49.26265625
A12: 25 | B12: ='Tasas imp.incl. Asisa VRT'!B17*100000/1000 -> 51.29289043 | C12: ='Tasas imp.incl. Asisa VRT'!C17*100000/1000 -> 29.25759375 | D12: ='Tasas imp.incl. Asisa VRT'!D17*100000/1000 -> 49.26265625 | E12: ='Tasas imp.incl. Asisa VRT'!E17*100000/1000 -> 49.26265625
A13: 26 | B13: ='Tasas imp.incl. Asisa VRT'!B18*100000/1000 -> 49.99943772 | C13: ='Tasas imp.incl. Asisa VRT'!C18*100000/1000 -> 29.25759375 | D13: ='Tasas imp.incl. Asisa VRT'!D18*100000/1000 -> 49.26265625 | E13: ='Tasas imp.incl. Asisa VRT'!E18*100000/1000 -> 49.26265625
A14: 27 | B14: ='Tasas imp.incl. Asisa VRT'!B19*100000/1000 -> 48.59845722 | C14: ='Tasas imp.incl. Asisa VRT'!C19*100000/1000 -> 29.25759375 | D14: ='Tasas imp.incl. Asisa VRT'!D19*100000/1000 -> 49.26265625 | E14: ='Tasas imp.incl. Asisa VRT'!E19*100000/1000 -> 49.26265625
A15: 28 | B15: ='Tasas imp.incl. Asisa VRT'!B20*100000/1000 -> 46.85449041 | C15: ='Tasas imp.incl. Asisa VRT'!C20*100000/1000 -> 29.25759375 | D15: ='Tasas imp.incl. Asisa VRT'!D20*100000/1000 -> 49.26265625 | E15: ='Tasas imp.incl. Asisa VRT'!E20*100000/1000 -> 49.26265625
A16: 29 | B16: ='Tasas imp.incl. Asisa VRT'!B21*100000/1000 -> 45.31644691 | C16: ='Tasas imp.incl. Asisa VRT'!C21*100000/1000 -> 29.25759375 | D16: ='Tasas imp.incl. Asisa VRT'!D21*100000/1000 -> 49.26265625 | E16: ='Tasas imp.incl. Asisa VRT'!E21*100000/1000 -> 49.26265625
A17: 30 | B17: ='Tasas imp.incl. Asisa VRT'!B22*100000/1000 -> 43.91534944 | C17: ='Tasas imp.incl. Asisa VRT'!C22*100000/1000 -> 26.33183438 | D17: ='Tasas imp.incl. Asisa VRT'!D22*100000/1000 -> 49.26265625 | E17: ='Tasas imp.incl. Asisa VRT'!E22*100000/1000 -> 49.26265625
A18: 31 | B18: ='Tasas imp.incl. Asisa VRT'!B23*100000/1000 -> 43.85348387 | C18: ='Tasas imp.incl. Asisa VRT'!C23*100000/1000 -> 26.33183438 | D18: ='Tasas imp.incl. Asisa VRT'!D23*100000/1000 -> 49.26265625 | E18: ='Tasas imp.incl. Asisa VRT'!E23*100000/1000 -> 49.26265625
A19: 32 | B19: ='Tasas imp.incl. Asisa VRT'!B24*100000/1000 -> 44.64463256 | C19: ='Tasas imp.incl. Asisa VRT'!C24*100000/1000 -> 26.33183438 | D19: ='Tasas imp.incl. Asisa VRT'!D24*100000/1000 -> 49.26265625 | E19: ='Tasas imp.incl. Asisa VRT'!E24*100000/1000 -> 49.26265625
A20: 33 | B20: ='Tasas imp.incl. Asisa VRT'!B25*100000/1000 -> 46.93342457 | C20: ='Tasas imp.incl. Asisa VRT'!C25*100000/1000 -> 26.33183438 | D20: ='Tasas imp.incl. Asisa VRT'!D25*100000/1000 -> 49.26265625 | E20: ='Tasas imp.incl. Asisa VRT'!E25*100000/1000 -> 49.26265625
A21: 34 | B21: ='Tasas imp.incl. Asisa VRT'!B26*100000/1000 -> 50.76679743 | C21: ='Tasas imp.incl. Asisa VRT'!C26*100000/1000 -> 26.33183438 | D21: ='Tasas imp.incl. Asisa VRT'!D26*100000/1000 -> 49.26265625 | E21: ='Tasas imp.incl. Asisa VRT'!E26*100000/1000 -> 49.26265625
A22: 35 | B22: ='Tasas imp.incl. Asisa VRT'!B27*100000/1000 -> 56.39389652 | C22: ='Tasas imp.incl. Asisa VRT'!C27*100000/1000 -> 29.25759375 | D22: ='Tasas imp.incl. Asisa VRT'!D27*100000/1000 -> 49.26265625 | E22: ='Tasas imp.incl. Asisa VRT'!E27*100000/1000 -> 49.26265625
A23: 36 | B23: ='Tasas imp.incl. Asisa VRT'!B28*100000/1000 -> 63.67034383 | C23: ='Tasas imp.incl. Asisa VRT'!C28*100000/1000 -> 29.25759375 | D23: ='Tasas imp.incl. Asisa VRT'!D28*100000/1000 -> 49.26265625 | E23: ='Tasas imp.incl. Asisa VRT'!E28*100000/1000 -> 49.26265625
A24: 37 | B24: ='Tasas imp.incl. Asisa VRT'!B29*100000/1000 -> 71.53782292 | C24: ='Tasas imp.incl. Asisa VRT'!C29*100000/1000 -> 29.25759375 | D24: ='Tasas imp.incl. Asisa VRT'!D29*100000/1000 -> 49.26265625 | E24: ='Tasas imp.incl. Asisa VRT'!E29*100000/1000 -> 49.26265625
A25: 38 | B25: ='Tasas imp.incl. Asisa VRT'!B30*100000/1000 -> 79.73115221 | C25: ='Tasas imp.incl. Asisa VRT'!C30*100000/1000 -> 29.25759375 | D25: ='Tasas imp.incl. Asisa VRT'!D30*100000/1000 -> 49.26265625 | E25: ='Tasas imp.incl. Asisa VRT'!E30*100000/1000 -> 49.26265625
A26: 39 | B26: ='Tasas imp.incl. Asisa VRT'!B31*100000/1000 -> 89.60033044 | C26: ='Tasas imp.incl. Asisa VRT'!C31*100000/1000 -> 29.25759375 | D26: ='Tasas imp.incl. Asisa VRT'!D31*100000/1000 -> 49.26265625 | E26: ='Tasas imp.incl. Asisa VRT'!E31*100000/1000 -> 49.26265625
A27: 40 | B27: ='Tasas imp.incl. Asisa VRT'!B32*100000/1000 -> 99.9785258 | C27: ='Tasas imp.incl. Asisa VRT'!C32*100000/1000 -> 35.1091125 | D27: ='Tasas imp.incl. Asisa VRT'!D32*100000/1000 -> 49.26265625 | E27: ='Tasas imp.incl. Asisa VRT'!E32*100000/1000 -> 49.26265625
A28: 41 | B28: ='Tasas imp.incl. Asisa VRT'!B33*100000/1000 -> 112.0505113 | C28: ='Tasas imp.incl. Asisa VRT'!C33*100000/1000 -> 39.49775156 | D28: ='Tasas imp.incl. Asisa VRT'!D33*100000/1000 -> 49.26265625 | E28: ='Tasas imp.incl. Asisa VRT'!E33*100000/1000 -> 49.26265625
A29: 42 | B29: ='Tasas imp.incl. Asisa VRT'!B34*100000/1000 -> 124.8943922 | C29: ='Tasas imp.incl. Asisa VRT'!C34*100000/1000 -> 43.88639063 | D29: ='Tasas imp.incl. Asisa VRT'!D34*100000/1000 -> 49.26265625 | E29: ='Tasas imp.incl. Asisa VRT'!E34*100000/1000 -> 49.26265625
A30: 43 | B30: ='Tasas imp.incl. Asisa VRT'!B35*100000/1000 -> 139.0556142 | C30: ='Tasas imp.incl. Asisa VRT'!C35*100000/1000 -> 51.20078906 | D30: ='Tasas imp.incl. Asisa VRT'!D35*100000/1000 -> 49.26265625 | E30: ='Tasas imp.incl. Asisa VRT'!E35*100000/1000 -> 49.26265625
A31: 44 | B31: ='Tasas imp.incl. Asisa VRT'!B36*100000/1000 -> 153.5301219 | C31: ='Tasas imp.incl. Asisa VRT'!C36*100000/1000 -> 58.5151875 | D31: ='Tasas imp.incl. Asisa VRT'!D36*100000/1000 -> 49.26265625 | E31: ='Tasas imp.incl. Asisa VRT'!E36*100000/1000 -> 49.26265625
A32: 45 | B32: ='Tasas imp.incl. Asisa VRT'!B37*100000/1000 -> 168.4904843 | C32: ='Tasas imp.incl. Asisa VRT'!C37*100000/1000 -> 62.90382656 | D32: ='Tasas imp.incl. Asisa VRT'!D37*100000/1000 -> 49.26265625 | E32: ='Tasas imp.incl. Asisa VRT'!E37*100000/1000 -> 49.26265625
A33: 46 | B33: ='Tasas imp.incl. Asisa VRT'!B38*100000/1000 -> 185.0078988 | C33: ='Tasas imp.incl. Asisa VRT'!C38*100000/1000 -> 70.218225 | D33: ='Tasas imp.incl. Asisa VRT'!D38*100000/1000 -> 49.26265625 | E33: ='Tasas imp.incl. Asisa VRT'!E38*100000/1000 -> 49.26265625
A34: 47 | B34: ='Tasas imp.incl. Asisa VRT'!B39*100000/1000 -> 203.501832 | C34: ='Tasas imp.incl. Asisa VRT'!C39*100000/1000 -> 76.06974375 | D34: ='Tasas imp.incl. Asisa VRT'!D39*100000/1000 -> 49.26265625 | E34: ='Tasas imp.incl. Asisa VRT'!E39*100000/1000 -> 49.26265625
A35: 48 | B35: ='Tasas imp.incl. Asisa VRT'!B40*100000/1000 -> 224.8985919 | C35: ='Tasas imp.incl. Asisa VRT'!C40*100000/1000 -> 80.45838281 | D35: ='Tasas imp.incl. Asisa VRT'!D40*100000/1000 -> 49.26265625 | E35: ='Tasas imp.incl. Asisa VRT'!E40*100000/1000 -> 49.26265625
A36: 49 | B36: ='Tasas imp.incl. Asisa VRT'!B41*100000/1000 -> 248.5164391 | C36: ='Tasas imp.incl. Asisa VRT'!C41*100000/1000 -> 87.77278125 | D36: ='Tasas imp.incl. Asisa VRT'!D41*100000/1000 -> 49.26265625 | E36: ='Tasas imp.incl. Asisa VRT'!E41*100000/1000 -> 49.26265625
A37: 50 | B37: ='Tasas imp.incl. Asisa VRT'!B42*100000/1000 -> 275.189568 | C37: ='Tasas imp.incl. Asisa VRT'!C42*100000/1000 -> 98.01293906 | D37: ='Tasas imp.incl. Asisa VRT'!D42*100000/1000 -> 49.26265625 | E37: ='Tasas imp.incl. Asisa VRT'!E42*100000/1000 -> 49.26265625
A38: 51 | B38: ='Tasas imp.incl. Asisa VRT'!B43*100000/1000 -> 305.7032849 | C38: ='Tasas imp.incl. Asisa VRT'!C43*100000/1000 -> 102.4015781 | D38: ='Tasas imp.incl. Asisa VRT'!D43*100000/1000 -> 49.26265625 | E38: ='Tasas imp.incl. Asisa VRT'!E43*100000/1000 -> 49.26265625
A39: 52 | B39: ='Tasas imp.incl. Asisa VRT'!B44*100000/1000 -> 339.486812 | C39: ='Tasas imp.incl. Asisa VRT'!C44*100000/1000 -> 109.7159766 | D39: ='Tasas imp.incl. Asisa VRT'!D44*100000/1000 -> 49.26265625 | E39: ='Tasas imp.incl. Asisa VRT'!E44*100000/1000 -> 49.26265625
A40: 53 | B40: ='Tasas imp.incl. Asisa VRT'!B45*100000/1000 -> 369.5426988 | C40: ='Tasas imp.incl. Asisa VRT'!C45*100000/1000 -> 117.030375 | D40: ='Tasas imp.incl. Asisa VRT'!D45*100000/1000 -> 49.26265625 | E40: ='Tasas imp.incl. Asisa VRT'!E45*100000/1000 -> 49.26265625
A41: 54 | B41: ='Tasas imp.incl. Asisa VRT'!B46*100000/1000 -> 402.4550655 | C41: ='Tasas imp.incl. Asisa VRT'!C46*100000/1000 -> 131.6591719 | D41: ='Tasas imp.incl. Asisa VRT'!D46*100000/1000 -> 49.26265625 | E41: ='Tasas imp.incl. Asisa VRT'!E46*100000/1000 -> 49.26265625
A42: 55 | B42: ='Tasas imp.incl. Asisa VRT'!B47*100000/1000 -> 436.1521399 | C42: ='Tasas imp.incl. Asisa VRT'!C47*100000/1000 -> 146.2879688 | D42: ='Tasas imp.incl. Asisa VRT'!D47*100000/1000 -> 49.26265625 | E42: ='Tasas imp.incl. Asisa VRT'!E47*100000/1000 -> 49.26265625
A43: 56 | B43: ='Tasas imp.incl. Asisa VRT'!B48*100000/1000 -> 472.997397 | C43: ='Tasas imp.incl. Asisa VRT'!C48*100000/1000 -> 178.6176098 | D43: ='Tasas imp.incl. Asisa VRT'!D48*100000/1000 -> 49.26265625 | E43: ='Tasas imp.incl. Asisa VRT'!E48*100000/1000 -> 49.26265625
A44: 57 | B44: ='Tasas imp.incl. Asisa VRT'!B49*100000/1000 -> 509.7251293 | C44: ='Tasas imp.incl. Asisa VRT'!C49*100000/1000 -> 194.7092864 | D44: ='Tasas imp.incl. Asisa VRT'!D49*100000/1000 -> 49.26265625 | E44: ='Tasas imp.incl. Asisa VRT'!E49*100000/1000 -> 49.26265625
A45: 58 | B45: ='Tasas imp.incl. Asisa VRT'!B50*100000/1000 -> 544.4260457 | C45: ='Tasas imp.incl. Asisa VRT'!C50*100000/1000 -> 212.4101306 | D45: ='Tasas imp.incl. Asisa VRT'!D50*100000/1000 -> 49.26265625 | E45: ='Tasas imp.incl. Asisa VRT'!E50*100000/1000 -> 49.26265625
A46: 59 | B46: ='Tasas imp.incl. Asisa VRT'!B51*100000/1000 -> 579.4236656 | C46: ='Tasas imp.incl. Asisa VRT'!C51*100000/1000 -> 230.1109748 | D46: ='Tasas imp.incl. Asisa VRT'!D51*100000/1000 -> 49.26265625 | E46: ='Tasas imp.incl. Asisa VRT'!E51*100000/1000 -> 49.26265625
A47: 60 | B47: ='Tasas imp.incl. Asisa VRT'!B52*100000/1000 -> 611.5183437 | C47: ='Tasas imp.incl. Asisa VRT'!C52*100000/1000 -> 252.639322 | D47: ='Tasas imp.incl. Asisa VRT'!D52*100000/1000 -> 49.26265625 | E47: ='Tasas imp.incl. Asisa VRT'!E52*100000/1000 -> 49.26265625
A48: 61 | B48: ='Tasas imp.incl. Asisa VRT'!B53*100000/1000 -> 641.2844118 | C48: ='Tasas imp.incl. Asisa VRT'!C53*100000/1000 -> 275.1676692 | D48: ='Tasas imp.incl. Asisa VRT'!D53*100000/1000 -> 49.26265625 | E48: ='Tasas imp.incl. Asisa VRT'!E53*100000/1000 -> 49.26265625
A49: 62 | B49: ='Tasas imp.incl. Asisa VRT'!B54*100000/1000 -> 670.5809688 | C49: ='Tasas imp.incl. Asisa VRT'!C54*100000/1000 -> 300.9143517 | D49: ='Tasas imp.incl. Asisa VRT'!D54*100000/1000 -> 49.26265625 | E49: ='Tasas imp.incl. Asisa VRT'!E54*100000/1000 -> 49.26265625
A50: 63 | B50: ='Tasas imp.incl. Asisa VRT'!B55*100000/1000 -> 708.8688292 | C50: ='Tasas imp.incl. Asisa VRT'!C55*100000/1000 -> 328.2702019 | D50: ='Tasas imp.incl. Asisa VRT'!D55*100000/1000 -> 49.26265625 | E50: ='Tasas imp.incl. Asisa VRT'!E55*100000/1000 -> 49.26265625
A51: 64 | B51: ='Tasas imp.incl. Asisa VRT'!B56*100000/1000 -> 744.7394535 | C51: ='Tasas imp.incl. Asisa VRT'!C56*100000/1000 -> 358.8443873 | D51: ='Tasas imp.incl. Asisa VRT'!D56*100000/1000 -> 49.26265625 | E51: ='Tasas imp.incl. Asisa VRT'!E56*100000/1000 -> 49.26265625
A52: 65 | B52: ='Tasas imp.incl. Asisa VRT'!B57*100000/1000 -> 791.6636238 | C52: ='Tasas imp.incl. Asisa VRT'!C57*100000/1000 -> 394.5386517 | D52: ='Tasas imp.incl. Asisa VRT'!D57*100000/1000 -> 49.26265625 | E52: ='Tasas imp.incl. Asisa VRT'!E57*100000/1000 -> 49.26265625
A53: 66 | B53: ='Tasas imp.incl. Asisa VRT'!B58*100000/1000 -> 872.8581141 | C53: ='Tasas imp.incl. Asisa VRT'!C58*100000/1000 -> 434.0364033 | D53: ='Tasas imp.incl. Asisa VRT'!D58*100000/1000 -> 49.26265625 | E53: ='Tasas imp.incl. Asisa VRT'!E58*100000/1000 -> 49.26265625
A54: 67 | B54: ='Tasas imp.incl. Asisa VRT'!B59*100000/1000 -> 973.2806456 | C54: ='Tasas imp.incl. Asisa VRT'!C59*100000/1000 -> 477.337642 | D54: ='Tasas imp.incl. Asisa VRT'!D59*100000/1000 -> 49.26265625 | E54: ='Tasas imp.incl. Asisa VRT'!E59*100000/1000 -> 49.26265625
A55: 68 | B55: ='Tasas imp.incl. Asisa VRT'!B60*100000/1000 -> 1091.105396
A56: 69 | B56: ='Tasas imp.incl. Asisa VRT'!B61*100000/1000 -> 1222.967738
A57: 70 | B57: ='Tasas imp.incl. Asisa VRT'!B62*100000/1000 -> 1387.174601
A58: 71 | B58: ='Tasas imp.incl. Asisa VRT'!B63*100000/1000 -> 1572.607618
A59: 72 | B59: ='Tasas imp.incl. Asisa VRT'!B64*100000/1000 -> 1775.219693
A60: 73 | B60: ='Tasas imp.incl. Asisa VRT'!B65*100000/1000 -> 2086.625903
A61: 74 | B61: ='Tasas imp.incl. Asisa VRT'!B66*100000/1000 -> 2489.689689
A62: 75 | B62: ='Tasas imp.incl. Asisa VRT'!B67*100000/1000 -> 2978.505665
A64: * Edades no contratables, al ser límite edad de entrada 64 años, pero si se permite la permanencia si se refleja tasa
A66: ** Prima mínima por póliza 50 €. Si no alcanza 50 €, subir el capital asegurado o incrementar garantías

Sheet Prima 150.000 € (hidden)
A1: Prima Asisa Vida Tranquilidad (impuestos incluidos)**
A2: Capital: 150.000 € (forma pago anual)
A4: Edad | B4: Prima Fallecimiento por cualquier causa | C4: Prima IPA por cualquier causa | D4: Prima Fallecimiento por accidente | E4: Prima IPA por accidente
A5: 18 | B5: ='Tasas imp.incl. Asisa VRT'!B10*150000/1000 -> 67.08704668 | C5: ='Tasas imp.incl. Asisa VRT'!C10*150000/1000 -> 43.88639063 | D5: ='Tasas imp.incl. Asisa VRT'!D10*150000/1000 -> 73.89398438 | E5: ='Tasas imp.incl. Asisa VRT'!E10*150000/1000 -> 73.89398438
A6: 19 | B6: ='Tasas imp.incl. Asisa VRT'!B11*150000/1000 -> 68.83042289 | C6: ='Tasas imp.incl. Asisa VRT'!C11*150000/1000 -> 43.88639063 | D6: ='Tasas imp.incl. Asisa VRT'!D11*150000/1000 -> 73.89398438 | E6: ='Tasas imp.incl. Asisa VRT'!E11*150000/1000 -> 73.89398438
A7: 20 | B7: ='Tasas imp.incl. Asisa VRT'!B12*150000/1000 -> 70.30712166 | C7: ='Tasas imp.incl. Asisa VRT'!C12*150000/1000 -> 43.88639063 | D7: ='Tasas imp.incl. Asisa VRT'!D12*150000/1000 -> 73.89398438 | E7: ='Tasas imp.incl. Asisa VRT'!E12*150000/1000 -> 73.89398438
A8: 21 | B8: ='Tasas imp.incl. Asisa VRT'!B13*150000/1000 -> 72.33133528 | C8: ='Tasas imp.incl. Asisa VRT'!C13*150000/1000 -> 43.88639063 | D8: ='Tasas imp.incl. Asisa VRT'!D13*150000/1000 -> 73.89398438 | E8: ='Tasas imp.incl. Asisa VRT'!E13*150000/1000 -> 73.89398438
A9: 22 | B9: ='Tasas imp.incl. Asisa VRT'!B14*150000/1000 -> 74.09882799 | C9: ='Tasas imp.incl. Asisa VRT'!C14*150000/1000 -> 43.88639063 | D9: ='Tasas imp.incl. Asisa VRT'!D14*150000/1000 -> 73.89398438 | E9: ='Tasas imp.incl. Asisa VRT'!E14*150000/1000 -> 73.89398438
A10: 23 | B10: ='Tasas imp.incl. Asisa VRT'!B15*150000/1000 -> 75.81576732 | C10: ='Tasas imp.incl. Asisa VRT'!C15*150000/1000 -> 43.88639063 | D10: ='Tasas imp.incl. Asisa VRT'!D15*150000/1000 -> 73.89398438 | E10: ='Tasas imp.incl. Asisa VRT'!E15*150000/1000 -> 73.89398438
A11: 24 | B11: ='Tasas imp.incl. Asisa VRT'!B16*150000/1000 -> 77.1428345 | C11: ='Tasas imp.incl. Asisa VRT'!C16*150000/1000 -> 43.88639063 | D11: ='Tasas imp.incl. Asisa VRT'!D16*150000/1000 -> 73.89398438 | E11: ='Tasas imp.incl. Asisa VRT'!E16*150000/1000 -> 73.89398438
A12: 25 | B12: ='Tasas imp.incl. Asisa VRT'!B17*150000/1000 -> 76.93933565 | C12: ='Tasas imp.incl. Asisa VRT'!C17*150000/1000 -> 43.88639063 | D12: ='Tasas imp.incl. Asisa VRT'!D17*150000/1000 -> 73.89398438 | E12: ='Tasas imp.incl. Asisa VRT'!E17*150000/1000 -> 73.89398438
A13: 26 | B13: ='Tasas imp.incl. Asisa VRT'!B18*150000/1000 -> 74.99915658 | C13: ='Tasas imp.incl. Asisa VRT'!C18*150000/1000 -> 43.88639063 | D13: ='Tasas imp.incl. Asisa VRT'!D18*150000/1000 -> 73.89398438 | E13: ='Tasas imp.incl. Asisa VRT'!E18*150000/1000 -> 73.89398438
A14: 27 | B14: ='Tasas imp.incl. Asisa VRT'!B19*150000/1000 -> 72.89768584 | C14: ='Tasas imp.incl. Asisa VRT'!C19*150000/1000 -> 43.88639063 | D14: ='Tasas imp.incl. Asisa VRT'!D19*150000/1000 -> 73.89398438 | E14: ='Tasas imp.incl. Asisa VRT'!E19*150000/1000 -> 73.89398438
A15: 28 | B15: ='Tasas imp.incl. Asisa VRT'!B20*150000/1000 -> 70.28173561 | C15: ='Tasas imp.incl. Asisa VRT'!C20*150000/1000 -> 43.88639063 | D15: ='Tasas imp.incl. Asisa VRT'!D20*150000/1000 -> 73.89398438 | E15: ='Tasas imp.incl. Asisa VRT'!E20*150000/1000 -> 73.89398438
A16: 29 | B16: ='Tasas imp.incl. Asisa VRT'!B21*150000/1000 -> 67.97467037 | C16: ='Tasas imp.incl. Asisa VRT'!C21*150000/1000 -> 43.88639063 | D16: ='Tasas imp.incl. Asisa VRT'!D21*150000/1000 -> 73.89398438 | E16: ='Tasas imp.incl. Asisa VRT'!E21*150000/1000 -> 73.89398438
A17: 30 | B17: ='Tasas imp.incl. Asisa VRT'!B22*150000/1000 -> 65.87302416 | C17: ='Tasas imp.incl. Asisa VRT'!C22*150000/1000 -> 39.49775156 | D17: ='Tasas imp.incl. Asisa VRT'!D22*150000/1000 -> 73.89398438 | E17: ='Tasas imp.incl. Asisa VRT'!E22*150000/1000 -> 73.89398438
A18: 31 | B18: ='Tasas imp.incl. Asisa VRT'!B23*150000/1000 -> 65.78022581 | C18: ='Tasas imp.incl. Asisa VRT'!C23*150000/1000 -> 39.49775156 | D18: ='Tasas imp.incl. Asisa VRT'!D23*150000/1000 -> 73.89398438 | E18: ='Tasas imp.incl. Asisa VRT'!E23*150000/1000 -> 73.89398438
A19: 32 | B19: ='Tasas imp.incl. Asisa VRT'!B24*150000/1000 -> 66.96694884 | C19: ='Tasas imp.incl. Asisa VRT'!C24*150000/1000 -> 39.49775156 | D19: ='Tasas imp.incl. Asisa VRT'!D24*150000/1000 -> 73.89398438 | E19: ='Tasas imp.incl. Asisa VRT'!E24*150000/1000 -> 73.89398438
A20: 33 | B20: ='Tasas imp.incl. Asisa VRT'!B25*150000/1000 -> 70.40013685 | C20: ='Tasas imp.incl. Asisa VRT'!C25*150000/1000 -> 39.49775156 | D20: ='Tasas imp.incl. Asisa VRT'!D25*150000/1000 -> 73.89398438 | E20: ='Tasas imp.incl. Asisa VRT'!E25*150000/1000 -> 73.89398438
A21: 34 | B21: ='Tasas imp.incl. Asisa VRT'!B26*150000/1000 -> 76.15019615 | C21: ='Tasas imp.incl. Asisa VRT'!C26*150000/1000 -> 39.49775156 | D21: ='Tasas imp.incl. Asisa VRT'!D26*150000/1000 -> 73.89398438 | E21: ='Tasas imp.incl. Asisa VRT'!E26*150000/1000 -> 73.89398438
A22: 35 | B22: ='Tasas imp.incl. Asisa VRT'!B27*150000/1000 -> 84.59084479 | C22: ='Tasas imp.incl. Asisa VRT'!C27*150000/1000 -> 43.88639063 | D22: ='Tasas imp.incl. Asisa VRT'!D27*150000/1000 -> 73.89398438 | E22: ='Tasas imp.incl. Asisa VRT'!E27*150000/1000 -> 73.89398438
A23: 36 | B23: ='Tasas imp.incl. Asisa VRT'!B28*150000/1000 -> 95.50551574 | C23: ='Tasas imp.incl. Asisa VRT'!C28*150000/1000 -> 43.88639063 | D23: ='Tasas imp.incl. Asisa VRT'!D28*150000/1000 -> 73.89398438 | E23: ='Tasas imp.incl. Asisa VRT'!E28*150000/1000 -> 73.89398438
A24: 37 | B24: ='Tasas imp.incl. Asisa VRT'!B29*150000/1000 -> 107.3067344 | C24: ='Tasas imp.incl. Asisa VRT'!C29*150000/1000 -> 43.88639063 | D24: ='Tasas imp.incl. Asisa VRT'!D29*150000/1000 -> 73.89398438 | E24: ='Tasas imp.incl. Asisa VRT'!E29*150000/1000 -> 73.89398438
A25: 38 | B25: ='Tasas imp.incl. Asisa VRT'!B30*150000/1000 -> 119.5967283 | C25: ='Tasas imp.incl. Asisa VRT'!C30*150000/1000 -> 43.88639063 | D25: ='Tasas imp.incl. Asisa VRT'!D30*150000/1000 -> 73.89398438 | E25: ='Tasas imp.incl. Asisa VRT'!E30*150000/1000 -> 73.89398438
A26: 39 | B26: ='Tasas imp.incl. Asisa VRT'!B31*150000/1000 -> 134.4004957 | C26: ='Tasas imp.incl. Asisa VRT'!C31*150000/1000 -> 43.88639063 | D26: ='Tasas imp.incl. Asisa VRT'!D31*150000/1000 -> 73.89398438 | E26: ='Tasas imp.incl. Asisa VRT'!E31*150000/1000 -> 73.89398438
A27: 40 | B27: ='Tasas imp.incl. Asisa VRT'!B32*150000/1000 -> 149.9677887 | C27: ='Tasas imp.incl. Asisa VRT'!C32*150000/1000 -> 52.66366875 | D27: ='Tasas imp.incl. Asisa VRT'!D32*150000/1000 -> 73.89398438 | E27: ='Tasas imp.incl. Asisa VRT'!E32*150000/1000 -> 73.89398438
A28: 41 | B28: ='Tasas imp.incl. Asisa VRT'!B33*150000/1000 -> 168.0757669 | C28: ='Tasas imp.incl. Asisa VRT'!C33*150000/1000 -> 59.24662734 | D28: ='Tasas imp.incl. Asisa VRT'!D33*150000/1000 -> 73.89398438 | E28: ='Tasas imp.incl. Asisa VRT'!E33*150000/1000 -> 73.89398438
A29: 42 | B29: ='Tasas imp.incl. Asisa VRT'!B34*150000/1000 -> 187.3415883 | C29: ='Tasas imp.incl. Asisa VRT'!C34*150000/1000 -> 65.82958594 | D29: ='Tasas imp.incl. Asisa VRT'!D34*150000/1000 -> 73.89398438 | E29: ='Tasas imp.incl. Asisa VRT'!E34*150000/1000 -> 73.89398438
A30: 43 | B30: ='Tasas imp.incl. Asisa VRT'!B35*150000/1000 -> 208.5834212 | C30: ='Tasas imp.incl. Asisa VRT'!C35*150000/1000 -> 76.80118359 | D30: ='Tasas imp.incl. Asisa VRT'!D35*150000/1000 -> 73.89398438 | E30: ='Tasas imp.incl. Asisa VRT'!E35*150000/1000 -> 73.89398438
A31: 44 | B31: ='Tasas imp.incl. Asisa VRT'!B36*150000/1000 -> 230.2951829 | C31: ='Tasas imp.incl. Asisa VRT'!C36*150000/1000 -> 87.77278125 | D31: ='Tasas imp.incl. Asisa VRT'!D36*150000/1000 -> 73.89398438 | E31: ='Tasas imp.incl. Asisa VRT'!E36*150000/1000 -> 73.89398438
A32: 45 | B32: ='Tasas imp.incl. Asisa VRT'!B37*150000/1000 -> 252.7357264 | C32: ='Tasas imp.incl. Asisa VRT'!C37*150000/1000 -> 94.35573984 | D32: ='Tasas imp.incl. Asisa VRT'!D37*150000/1000 -> 73.89398438 | E32: ='Tasas imp.incl. Asisa VRT'!E37*150000/1000 -> 73.89398438
A33: 46 | B33: ='Tasas imp.incl. Asisa VRT'!B38*150000/1000 -> 277.5118483 | C33: ='Tasas imp.incl. Asisa VRT'!C38*150000/1000 -> 105.3273375 | D33: ='Tasas imp.incl. Asisa VRT'!D38*150000/1000 -> 73.89398438 | E33: ='Tasas imp.incl. Asisa VRT'!E38*150000/1000 -> 73.89398438
A34: 47 | B34: ='Tasas imp.incl. Asisa VRT'!B39*150000/1000 -> 305.2527481 | C34: ='Tasas imp.incl. Asisa VRT'!C39*150000/1000 -> 114.1046156 | D34: ='Tasas imp.incl. Asisa VRT'!D39*150000/1000 -> 73.89398438 | E34: ='Tasas imp.incl. Asisa VRT'!E39*150000/1000 -> 73.89398438
A35: 48 | B35: ='Tasas imp.incl. Asisa VRT'!B40*150000/1000 -> 337.3478878 | C35: ='Tasas imp.incl. Asisa VRT'!C40*150000/1000 -> 120.6875742 | D35: ='Tasas imp.incl. Asisa VRT'!D40*150000/1000 -> 73.89398438 | E35: ='Tasas imp.incl. Asisa VRT'!E40*150000/1000 -> 73.89398438
A36: 49 | B36: ='Tasas imp.incl. Asisa VRT'!B41*150000/1000 -> 372.7746587 | C36: ='Tasas imp.incl. Asisa VRT'!C41*150000/1000 -> 131.6591719 | D36: ='Tasas imp.incl. Asisa VRT'!D41*150000/1000 -> 73.89398438 | E36: ='Tasas imp.incl. Asisa VRT'!E41*150000/1000 -> 73.89398438
A37: 50 | B37: ='Tasas imp.incl. Asisa VRT'!B42*150000/1000 -> 412.784352 | C37: ='Tasas imp.incl. Asisa VRT'!C42*150000/1000 -> 147.0194086 | D37: ='Tasas imp.incl. Asisa VRT'!D42*150000/1000 -> 73.89398438 | E37: ='Tasas imp.incl. Asisa VRT'!E42*150000/1000 -> 73.89398438
A38: 51 | B38: ='Tasas imp.incl. Asisa VRT'!B43*150000/1000 -> 458.5549273 | C38: ='Tasas imp.incl. Asisa VRT'!C43*150000/1000 -> 153.6023672 | D38: ='Tasas imp.incl. Asisa VRT'!D43*150000/1000 -> 73.89398438 | E38: ='Tasas imp.incl. Asisa VRT'!E43*150000/1000 -> 73.89398438
A39: 52 | B39: ='Tasas imp.incl. Asisa VRT'!B44*150000/1000 -> 509.230218 | C39: ='Tasas imp.incl. Asisa VRT'!C44*150000/1000 -> 164.5739648 | D39: ='Tasas imp.incl. Asisa VRT'!D44*150000/1000 -> 73.89398438 | E39: ='Tasas imp.incl. Asisa VRT'!E44*150000/1000 -> 73.89398438
A40: 53 | B40: ='Tasas imp.incl. Asisa VRT'!B45*150000/1000 -> 554.3140482 | C40: ='Tasas imp.incl. Asisa VRT'!C45*150000/1000 -> 175.5455625 | D40: ='Tasas imp.incl. Asisa VRT'!D45*150000/1000 -> 73.89398438 | E40: ='Tasas imp.incl. Asisa VRT'!E45*150000/1000 -> 73.89398438
A41: 54 | B41: ='Tasas imp.incl. Asisa VRT'!B46*150000/1000 -> 603.6825983 | C41: ='Tasas imp.incl. Asisa VRT'!C46*150000/1000 -> 197.4887578 | D41: ='Tasas imp.incl. Asisa VRT'!D46*150000/1000 -> 73.89398438 | E41: ='Tasas imp.incl. Asisa VRT'!E46*150000/1000 -> 73.89398438
A42: 55 | B42: ='Tasas imp.incl. Asisa VRT'!B47*150000/1000 -> 654.2282098 | C42: ='Tasas imp.incl. Asisa VRT'!C47*150000/1000 -> 219.4319531 | D42: ='Tasas imp.incl. Asisa VRT'!D47*150000/1000 -> 73.89398438 | E42: ='Tasas imp.incl. Asisa VRT'!E47*150000/1000 -> 73.89398438
A43: 56 | B43: ='Tasas imp.incl. Asisa VRT'!B48*150000/1000 -> 709.4960954 | C43: ='Tasas imp.incl. Asisa VRT'!C48*150000/1000 -> 267.9264148 | D43: ='Tasas imp.incl. Asisa VRT'!D48*150000/1000 -> 73.89398438 | E43: ='Tasas imp.incl. Asisa VRT'!E48*150000/1000 -> 73.89398438
A44: 57 | B44: ='Tasas imp.incl. Asisa VRT'!B49*150000/1000 -> 764.5876939 | C44: ='Tasas imp.incl. Asisa VRT'!C49*150000/1000 -> 292.0639296 | D44: ='Tasas imp.incl. Asisa VRT'!D49*150000/1000 -> 73.89398438 | E44: ='Tasas imp.incl. Asisa VRT'!E49*150000/1000 -> 73.89398438
A45: 58 | B45: ='Tasas imp.incl. Asisa VRT'!B50*150000/1000 -> 816.6390685 | C45: ='Tasas imp.incl. Asisa VRT'!C50*150000/1000 -> 318.6151959 | D45: ='Tasas imp.incl. Asisa VRT'!D50*150000/1000 -> 73.89398438 | E45: ='Tasas imp.incl. Asisa VRT'!E50*150000/1000 -> 73.89398438
A46: 59 | B46: ='Tasas imp.incl. Asisa VRT'!B51*150000/1000 -> 869.1354984 | C46: ='Tasas imp.incl. Asisa VRT'!C51*150000/1000 -> 345.1664623 | D46: ='Tasas imp.incl. Asisa VRT'!D51*150000/1000 -> 73.89398438 | E46: ='Tasas imp.incl. Asisa VRT'!E51*150000/1000 -> 73.89398438
A47: 60 | B47: ='Tasas imp.incl. Asisa VRT'!B52*150000/1000 -> 917.2775156 | C47: ='Tasas imp.incl. Asisa VRT'!C52*150000/1000 -> 378.958983 | D47: ='Tasas imp.incl. Asisa VRT'!D52*150000/1000 -> 73.89398438 | E47: ='Tasas imp.incl. Asisa VRT'!E52*150000/1000 -> 73.89398438
A48: 61 | B48: ='Tasas imp.incl. Asisa VRT'!B53*150000/1000 -> 961.9266177 | C48: ='Tasas imp.incl. Asisa VRT'!C53*150000/1000 -> 412.7515038 | D48: ='Tasas imp.incl. Asisa VRT'!D53*150000/1000 -> 73.89398438 | E48: ='Tasas imp.incl. Asisa VRT'!E53*150000/1000 -> 73.89398438
A49: 62 | B49: ='Tasas imp.incl. Asisa VRT'!B54*150000/1000 -> 1005.871453 | C49: ='Tasas imp.incl. Asisa VRT'!C54*150000/1000 -> 451.3715276 | D49: ='Tasas imp.incl. Asisa VRT'!D54*150000/1000 -> 73.89398438 | E49: ='Tasas imp.incl. Asisa VRT'!E54*150000/1000 -> 73.89398438
A50: 63 | B50: ='Tasas imp.incl. Asisa VRT'!B55*150000/1000 -> 1063.303244 | C50: ='Tasas imp.incl. Asisa VRT'!C55*150000/1000 -> 492.4053028 | D50: ='Tasas imp.incl. Asisa VRT'!D55*150000/1000 -> 73.89398438 | E50: ='Tasas imp.incl. Asisa VRT'!E55*150000/1000 -> 73.89398438
A51: 64 | B51: ='Tasas imp.incl. Asisa VRT'!B56*150000/1000 -> 1117.10918 | C51: ='Tasas imp.incl. Asisa VRT'!C56*150000/1000 -> 538.266581 | D51: ='Tasas imp.incl. Asisa VRT'!D56*150000/1000 -> 73.89398438 | E51: ='Tasas imp.incl. Asisa VRT'!E56*150000/1000 -> 73.89398438
A52: 65 | B52: ='Tasas imp.incl. Asisa VRT'!B57*150000/1000 -> 1187.495436 | C52: ='Tasas imp.incl. Asisa VRT'!C57*150000/1000 -> 591.8079776 | D52: ='Tasas imp.incl. Asisa VRT'!D57*150000/1000 -> 73.89398438 | E52: ='Tasas imp.incl. Asisa VRT'!E57*150000/1000 -> 73.89398438
A53: 66 | B53: ='Tasas imp.incl. Asisa VRT'!B58*150000/1000 -> 1309.287171 | C53: ='Tasas imp.incl. Asisa VRT'!C58*150000/1000 -> 651.0546049 | D53: ='Tasas imp.incl. Asisa VRT'!D58*150000/1000 -> 73.89398438 | E53: ='Tasas imp.incl. Asisa VRT'!E58*150000/1000 -> 73.89398438
A54: 67 | B54: ='Tasas imp.incl. Asisa VRT'!B59*150000/1000 -> 1459.920968 | C54: ='Tasas imp.incl. Asisa VRT'!C59*150000/1000 -> 716.006463 | D54: ='Tasas imp.incl. Asisa VRT'!D59*150000/1000 -> 73.89398438 | E54: ='Tasas imp.incl. Asisa VRT'!E59*150000/1000 -> 73.89398438
A55: 68 | B55: ='Tasas imp.incl. Asisa VRT'!B60*150000/1000 -> 1636.658094
A56: 69 | B56: ='Tasas imp.incl. Asisa VRT'!B61*150000/1000 -> 1834.451607
A57: 70 | B57: ='Tasas imp.incl. Asisa VRT'!B62*150000/1000 -> 2080.761902
A58: 71 | B58: ='Tasas imp.incl. Asisa VRT'!B63*150000/1000 -> 2358.911427
A59: 72 | B59: ='Tasas imp.incl. Asisa VRT'!B64*150000/1000 -> 2662.82954
A60: 73 | B60: ='Tasas imp.incl. Asisa VRT'!B65*150000/1000 -> 3129.938854
A61: 74 | B61: ='Tasas imp.incl. Asisa VRT'!B66*150000/1000 -> 3734.534534
A62: 75 | B62: ='Tasas imp.incl. Asisa VRT'!B67*150000/1000 -> 4467.758497
A64: * Edades no contratables, al ser límite edad de entrada 64 años, pero si se permite la permanencia si se refleja tasa
A66: ** Prima mínima por póliza 50 €. Si no alcanza 50 €, subir el capital asegurado o incrementar garantías

Sheet Recargos por fracc (hidden)
A1: Anual | B1: 0
A2: Semestral | B2: 0.01
A3: Trimestral | B3: 0.02
A4: Mensual | B4: 0.03
